Cogmind - Beta 16 @@@ ROGUE MODE // 2025.11.19 @ 20:23:10 Player: lvl5hm Result: Defending 0bPrime! Performance ------------- Evolutions (8) 4000 Regions Visited (28) 5600 Robots Destroyed (348) 1740 Value Destroyed (18301) 18301 Prototype IDs (139) 2780 Alien Tech Used (5) 1000 Bonus (48191) 48191 TOTAL SCORE: 81612 Bonus ------- High Alert Combat Kills 7118 Follower Combat Kills 3226 Network Hubs Disabled 200 Registered with UFD 300 Met Optimus in HQ 500 Met Zhirov 300 Met Warlord at Base 500 MAIN.C Attacked Warlord 500 Warlord Defense Kills 2728 Built Enhanced Grunts 300 A7 Reached Mainframe 300 Met R17 at Cetus 500 Met R17 at Research 2000 Destroyed Superfortress 15000 Met Optimus at Protoforge 1000 Executed Drillbomb Mission 10000 Optimus Survived to 0b1 3000 Win 3000 Friendly Fire -2281 Cogmind --------- Core Integrity 664/1450 Matter 290/300 Energy 1939/2320 System Corruption 63% Temperature Cool (0) Movement Flying (10) Location 0bPrime Parts ------- > --- POWER (2) -------- Hybrid Graviton Reactor Concept Zero-point Core > --- PROPULSION (8) --- Experimental Biomechanical Wings Experimental Biomechanical Wings Experimental Surge Thruster Experimental Surge Thruster Experimental Surge Thruster Concept Fieldthrust Drive Concept Fieldthrust Drive Concept Fieldthrust Drive > --- UTILITY (11) ----- Concept Antigrav Storage Unit Concept Chromion Battery Experimental Optical Array Advanced Targeting Computer Experimental Targeting Computer Experimental Core Analyzer Experimental Reaction Control System Experimental Reaction Control System > --- WEAPON (2) ------- (None) > --- INVENTORY (25) --- Faulty Concept Phasing Heat Sink Concept NT7 Matterbank (750) Experimental Kinecellerator Experimental Reaction Control System Concept Antimissile System Crosscalibrator Concept Plasma Driver Concept Heavy Railcannon Hellfire Missile Launcher Experimental Terror Saw Peak State ------------ > --- POWER ------------ Concept Zero-point Core Concept Zero-point Core > --- PROPULSION ------- Experimental Antigrav System Experimental Antigrav System Gravjet Array Gravjet Array Concept Gyrokinetic System Concept Gyrokinetic System > --- UTILITY ---------- Concept Antigrav Storage Unit Concept Chromion Battery Experimental Optical Array Advanced Sensor Array Advanced Signal Interpreter Advanced Targeting Computer Experimental Core Analyzer Experimental Kinecellerator Experimental Reaction Control System Experimental Utility Shielding Crosscalibrator > --- WEAPON ----------- Concept Heavy Railcannon > --- INVENTORY -------- Hybrid Graviton Reactor Experimental Antigrav System Gravjet Array Concept Combat Aerolev Unit Concept Gyrokinetic System Concept Phasing Heat Sink Concept NT7 Matterbank Experimental Cloaking Device Concept Antimissile System Concept Plasma Driver Hellfire Missile Launcher Core Stripper Experimental Terror Saw UFD Drillbomb [Rating: 256] Favorites ----------- Power Micro Nuclear Core Engine Subdweller Power Source Power Core Micro Nuclear Core Reactor Quantum Reactor Propulsion Light Treads Treads Light Treads Leg Aluminum Leg Hover Unit Concept Gyrokinetic System Flight Unit Nuclear Pulse Thruster Utility Advanced Signal Interpreter Device Advanced Sensor Array Storage Large Storage Unit Processor Advanced Signal Interpreter Hackware Improved Hacking Suite Protection Centrium Medium Armor Plating Weapon Assault Rifle Energy Gun Medium Laser Energy Cannon Concept Plasma Driver Ballistic Gun Assault Rifle Ballistic Cannon Magnetic Acceleration Cannon Launcher Heavy Missile Launcher Special Weapon Remote Datajack Impact Weapon Impact Mace Slashing Weapon Phasing Sabre Special Melee Weapon Datajack Build | -11 -10 -10 -8 -6 -6 -6 -6 -6 -6 -6 -5 -5 -5 -5 -5 -5 -4 -4 -4 -4 -4 -4 -3 -3 -3 -2 -2 -2 ------- Run | Yrd Mat Sub Scr Fac Was Fac Ext Cet Arc Hub Fac Was Fac Upp Upp Zhi Pro Fac Was Fac Upp War Pro Res Tes Res Qua Frg Slots Evolved 16 | . . . . 8 . . . . . . 2 . . . . . . 2 . . . . . 2 . 2 . . Power 1 | . . . . . . . . . . . . . . . . . . . . . . . . 1 . . . . Propulsion 6 | . . . . 3 . . . . . . 1 . . . . . . 1 . . . . . 1 . . . . Utility 9 | . . . . 5 . . . . . . 1 . . . . . . 1 . . . . . . . 2 . . Weapon . | . . . . . . . . . . . . . . . . . . . . . . . . . . . . . Parts Attached 243 | 8 5 9 12 28 2 15 5 8 5 3 12 2 8 2 . 4 1 8 . . . 8 . 13 10 9 2 64 Power 27 | 1 1 2 1 2 . . 1 1 . . 1 . . . . . . . . . . . . 4 1 1 . 11 Engine 4 | 1 1 2 . . . . . . . . . . . . . . . . . . . . . . . . . . Core 10 | . . . 1 2 . . 1 . . . 1 . . . . . . . . . . . . 2 . . . 3 Reactor 13 | . . . . . . . . 1 . . . . . . . . . . . . . . . 2 1 1 . 8 Propulsion 73 | 4 2 . 5 8 2 4 . 2 1 2 6 . 1 . . 2 . 3 . . . 2 . 1 1 6 1 20 Treads 9 | 2 . . 2 . . . . 2 1 2 . . . . . . . . . . . . . . . . . . Leg 4 | 2 2 . . . . . . . . . . . . . . . . . . . . . . . . . . . Wheel . | . . . . . . . . . . . . . . . . . . . . . . . . . . . . . Hover 10 | . . . . . . . . . . . . . . . . . . . . . . . . . . . . 10 Flight 50 | . . . 3 8 2 4 . . . . 6 . 1 . . 2 . 3 . . . 2 . 1 1 6 1 10 Utility 101 | 1 2 3 3 12 . 6 3 4 2 . 4 1 6 2 . 1 1 5 . . . 5 . 5 5 2 1 27 Device 38 | . . 1 . 3 . 1 1 1 1 . 1 1 4 1 . . . 2 . . . 4 . 2 4 1 . 10 Storage 12 | 1 1 . 2 2 . 1 . . . . . . 1 . . . . 1 . . . . . . . . . 3 Processor 19 | . 1 . . 2 . 1 . . . . . . 1 . . . 1 . . . . . . 3 . 1 . 9 Hackware 12 | . . . . 3 . 2 . . . . 3 . . . . . . 2 . . . 1 . . . . 1 . Protection 20 | . . 2 1 2 . 1 2 3 1 . . . . 1 . 1 . . . . . . . . 1 . . 5 Artifact . | . . . . . . . . . . . . . . . . . . . . . . . . . . . . . Weapon 42 | 2 . 4 3 6 . 5 1 1 2 1 1 1 1 . . 1 . . . . . 1 . 3 3 . . 6 Energy Gun 2 | 1 . . . . . . . . 1 . . . . . . . . . . . . . . . . . . . Energy Cannon 7 | . . . 1 . . 1 . . . . . . . . . . . . . . . . . 2 2 . . 1 Ballistic Gun 7 | 1 . 2 . 1 . 1 . 1 1 . . . . . . . . . . . . . . . . . . . Ballistic Cannon 8 | . . . . . . 1 1 . . 1 . . 1 . . 1 . . . . . 1 . . . . . 2 Launcher 4 | . . 1 1 . . . . . . . . 1 . . . . . . . . . . . . . . . 1 Special Weapon 1 | . . . . . . . . . . . . . . . . . . . . . . . . . 1 . . . Impact Weapon 5 | . . 1 1 . . 2 . . . . . . . . . . . . . . . . . . . . . 1 Slashing Weapon 7 | . . . . 4 . . . . . . 1 . . . . . . . . . . . . 1 . . . 1 Piercing Weapon . | . . . . . . . . . . . . . . . . . . . . . . . . . . . . . Special Melee Weapon 1 | . . . . 1 . . . . . . . . . . . . . . . . . . . . . . . . Unidentified Prototypes 48 | . . . . 1 . 4 . 3 1 . . 2 1 1 . 3 . 2 . . . 6 . 2 5 1 2 14 Corrupted Parts 5 | . . . . . . . . . 2 . . . . . . . . . . . . . . . . . . 3 System Corruption 36 | . . . . . . . . . 6 . . . . . . . . . . . . . . . . . . 30 Parts Lost 35 | . . 2 . 1 . 2 1 . . . 2 . 1 . . . . 3 . . . 1 . . 2 . 5 15 Power 4 | . . 1 . . . . . . . . . . . . . . . . . . . . . . 1 . 1 1 Propulsion 16 | . . 1 . 1 . 2 1 . . . 1 . 1 . . . . 1 . . . . . . . . 2 6 Utility 14 | . . . . . . . . . . . 1 . . . . . . 2 . . . . . . 1 . 2 8 Weapon 1 | . . . . . . . . . . . . . . . . . . . . . . 1 . . . . . . Highest Loss Streak 4 | . . 2 . 1 . 1 1 . . . 1 . 1 . . . . 3 . . . 1 . . 2 . 4 4 To Critical Strikes 1 | . . . . . . . . . . . . . . . . . . . . . . . . . . . . 1 Average Backups 10 | 2 11 13 12 8 8 8 8 8 7 8 8 8 11 10 11 12 13 12 13 12 13 12 13 12 11 11 11 11 Power . | . . . . . . . . . 1 1 . . . 1 1 1 1 1 1 1 1 1 2 . . . . . Propulsion 1 | 1 2 2 2 1 . . . . . 1 1 . 1 1 1 1 2 1 2 2 2 2 2 1 1 1 . 1 Utility 4 | . 4 5 5 4 4 5 6 5 2 2 2 4 6 4 4 4 4 4 5 4 5 5 6 6 6 5 5 5 Weapon 3 | . 4 5 3 1 2 1 1 2 3 2 3 2 3 4 5 4 4 3 3 2 3 2 1 2 2 3 3 3 Tool/Special . | . . . . . . . . . . . . . . . . . . . . . . . . . . . . . Unused Backups 56 | . 2 2 14 3 1 4 1 1 1 2 1 . 2 1 . . . 6 . . . 1 . 1 3 . 2 8 Power 6 | . . . 2 1 . . . . . 1 . . 1 . . . . . . . . . . . . . . 1 Propulsion 12 | . . 1 2 1 . 1 . . . . . . 1 1 . . . 1 . . . . . . . . . 4 Utility 23 | . 2 . 4 1 1 2 1 1 1 1 . . . . . . . 3 . . . 1 . 1 2 . . 2 Weapon 13 | . . 1 6 . . . . . . . 1 . . . . . . 2 . . . . . . 1 . 1 1 Tool/Special 2 | . . . . . . 1 . . . . . . . . . . . . . . . . . . . . 1 . Average Slot Usage (%) 84 | . 98 99 77 90 100 98 92 79 72 80 76 87 89 85 82 77 81 83 84 83 84 81 78 83 83 87 92 82 Engine 2 | . 14 14 5 . . . . . . . . . . . . . . . . . . . . . . . . . Core 3 | . . . 6 6 6 5 6 2 . . . 5 5 5 5 5 5 5 5 5 5 5 5 6 2 . . 3 Reactor 1 | . . . . . . . . 3 5 5 3 . . . . . . . . . . . . 1 4 7 7 4 Treads 8 | . . 18 22 . . . . 7 11 15 11 . . . . . . . . . . . . . . . . . Leg 1 | . 28 9 . . . . . . . . . . . . . . . . . . . . . . . . . . Hover 1 | . . . . . . . . . . . . . . . . . . . . . . . . . . . . 10 Flight 14 | . . . 4 30 33 32 31 10 . . 5 27 27 23 23 23 23 25 26 24 26 26 26 27 28 29 33 15 Device 9 | . . 10 5 12 13 10 4 7 5 5 5 5 6 16 17 16 17 12 15 15 15 19 21 15 12 20 19 13 Storage 9 | . 14 14 18 6 6 6 6 6 5 5 5 5 5 5 5 5 5 5 5 5 5 5 5 4 4 4 4 7 Processor 9 | . 12 . . 5 6 6 13 13 11 11 10 11 16 17 17 17 17 13 10 10 10 10 10 15 17 16 17 18 Hackware 4 | . . . . 8 13 21 14 5 . . 6 16 15 5 5 5 5 8 10 10 10 5 5 4 2 . 1 . Protection 4 | . . 2 . 6 6 . 5 9 16 17 11 5 . . . . . 4 5 5 5 4 . 1 2 3 3 2 Ballistic Gun 4 | . 14 18 8 1 6 2 . 3 7 11 8 . . . . . . . . . . . . . . . . . Ballistic Cannon 1 | . . . . . . 2 3 6 2 4 4 . 3 5 5 . 4 1 . . . 3 5 . 1 . . 1 Launcher 1 | . . . 4 . . . . . . . . 4 . . . . . . . . . . . . . . . . Impact Weapon 1 | . . 6 . . . 4 . . . . . 5 4 2 . 1 . 3 5 2 . . . . . . . . Peak Build Rating 256 | 6 8 12 26 67 65 70 71 101 113 116 120 103 99 100 92 97 97 113 106 113 109 127 119 148 160 165 178 256 Average Rating 85 | 5 7 10 14 51 64 65 64 83 107 114 108 97 92 94 92 90 95 108 106 106 109 115 119 131 139 153 163 192 On Entrance 88 | . 6 8 12 23 64 65 70 58 101 113 114 88 98 99 92 92 97 96 106 106 109 109 119 119 140 126 165 164 Avg Prop Armor Cover (%) 7 | . . . 14 4 . 4 . . . 3 3 . . . . . . . . . . . . . 1 . 3 5 Naked Turns 31 | . . . 31 . . . . . . . . . . . . . . . . . . . . . . . . . Heaviest Build 101 | 14 29 36 41 30 30 32 33 60 65 68 69 37 44 42 42 42 42 49 42 49 44 50 48 56 61 67 56 101 Greatest Support 190 | 40 20 40 40 36 34 37 31 160 160 190 160 40 44 44 44 44 44 50 55 55 50 50 50 62 61 61 67 130 Greatest Overweight (x) 21 | 1 1 1 11 1 . 1 9 1 . . 3 . 1 . . . . . . . . . . . . 1 . 21 Average Overweight (x) . | . . . . . . . . . . . . . . . . . . . . . . . . . . . . . Largest Inventory Capacity 25 | 8 15 15 15 15 10 10 10 10 10 10 10 10 15 15 15 15 15 15 15 15 15 15 15 15 15 15 15 25 Average Capacity 14 | 7 13 15 14 9 10 10 10 10 10 10 10 10 14 15 15 15 15 15 15 15 15 15 15 15 15 15 15 19 Most Carried 25 | 5 15 15 15 14 10 10 10 10 10 10 10 10 15 15 13 15 15 15 15 15 15 15 14 15 15 15 15 25 Average Carried 12 | 2 11 14 12 9 9 9 9 9 9 9 9 9 13 12 13 14 14 14 15 14 15 14 14 14 13 14 14 16 Final Capacity 25 | 8 15 15 15 10 10 10 10 10 10 10 10 10 15 15 15 15 15 15 15 15 15 15 15 15 15 15 15 25 Final Carried 15 | 5 15 14 15 10 10 8 10 10 10 9 10 10 15 13 13 15 15 15 15 15 15 14 14 15 14 15 15 11 Class Distribution -------------------- 32% | Mutant 10% | Hacker-Sprinter 8% | Hacker-Scout 7% | Scavenger-Tank 4% | Scout 4% | Scavenger-Mutant 3% | Scavenger-Scout 3% | Commander-Tank 3% | Commander-Mutant 3% | Commander-Skirmisher Dominant Class ---------------- Mutant | -10/Materials Mutant | -10/Subcaves Mutant | -8/Scraptown Sprinter | -6/Factory Hacker-Sprinter | -6/Waste Hacker-Sprinter | -6/Factory Commander-Sprinter | -6/Extension Commander-Mutant | -6/Cetus Commander-Skirmisher | -6/Archives Scavenger-Tank | -6/Hub_04(d) Scavenger-Tank | -5/Factory Hacker-Scout | -5/Waste Hacker-Scout | -5/Factory Scientist-Scout | -5/Upper Caves Scientist-Scout | -5/Upper Caves Scout | -5/Zhirov Scout | -4/Proximity Caves Hacker-Scout | -4/Factory Hacker-Scout | -4/Waste Hacker-Sprinter | -4/Factory Hacker-Sprinter | -4/Upper Caves Hacker-Scout | -4/Warlord Hacker-Scout | -3/Proximity Caves Hacker-Ninja | -3/Research Scout | -3/Testing Ninja | -2/Research Infiltrator-Assassin | -2/Quarantine Scavenger-Scout | -2/Protoforge Resources | -11 -10 -10 -8 -6 -6 -6 -6 -6 -6 -6 -5 -5 -5 -5 -5 -5 -4 -4 -4 -4 -4 -4 -3 -3 -3 -2 -2 -2 ----------- Run | Yrd Mat Sub Scr Fac Was Fac Ext Cet Arc Hub Fac Was Fac Upp Upp Zhi Pro Fac Was Fac Upp War Pro Res Tes Res Qua Frg Matter Collected 14864 | 340 184 336 232 404 229 260 428 187 333 304 507 134 549 290 . 78 250 209 . 307 18 784 88 246 291 592 148 7136 Remotely . | . . . . . . . . . . . . . . . . . . . . . . . . . . . . . Salvage Created 16648 | 203 633 219 . 340 105 454 830 101 294 287 830 134 997 453 . 371 268 451 . 208 . 1073 198 142 404 559 148 6946 Parts 655 | 16 34 13 . 25 3 21 29 8 19 20 25 2 20 8 . 1 10 10 . 14 . 47 2 7 14 21 6 280 Haulers Intercepted 6 | . 2 . . . . 2 . . . . . . 1 . . . . . . . . . . . . 1 . . Recyclers Shooed 7 | . 5 . . . . . . . . . 1 . . . . . . 1 . . . . . . . . . . Parts Field Recycled . | . . . . . . . . . . . . . . . . . . . . . . . . . . . . . Retrieved Matter . | . . . . . . . . . . . . . . . . . . . . . . . . . . . . . Parts Self-Destructed 35 | . . 15 . . . . . . . . . . . 8 . . 10 . . . . . 2 . . . . . Prevented 1 | . . . . . . . . . . . . . . . . 1 . . . . . . . . . . . . Parts Restored 9 | . . . . . . . . . . . . . . . . . . . . . . . . . . . . 9 Faulty 9 | . . . . . . . . . . . . . . . . . . . . . . . . . . . . 9 Kills | -11 -10 -10 -8 -6 -6 -6 -6 -6 -6 -6 -5 -5 -5 -5 -5 -5 -4 -4 -4 -4 -4 -4 -3 -3 -3 -2 -2 -2 ------- Run | Yrd Mat Sub Scr Fac Was Fac Ext Cet Arc Hub Fac Was Fac Upp Upp Zhi Pro Fac Was Fac Upp War Pro Res Tes Res Qua Frg Combat Hostiles Destroyed 249 | . 8 7 . 3 . 1 17 1 . 5 13 . 11 6 . . 6 1 . 2 . 21 4 1 11 6 . 125 Melee 17 | . . . . 3 . . . . . . . . 1 . . . . . . . . . . . . 5 . 8 Guns 24 | . 8 5 . . . . . . . 4 7 . . . . . . . . . . . . . . . . . Cannons 147 | . . . . . . . 4 1 . 1 5 . 8 6 . . 6 1 . 2 . 21 4 1 11 1 . 75 AOE 49 | . . 2 . . . . 12 . . . 1 . . . . . . . . . . . . . . . . 34 Classes Destroyed 29 | 2 5 1 . 1 1 1 3 . . 1 1 . . 1 . . 1 . . . . 3 . . . . 1 7 Worker 13 | . 2 . . . . 1 . . . 1 1 . . . . . . 1 . 1 . . . . . 5 . 1 Builder 3 | . . . . . . 1 1 . . . . . . . . . . . . . . . . 1 . . . . Tunneler 7 | 6 1 . . . . . . . . . . . . . . . . . . . . . . . . . . . Hauler 6 | . 2 . . . . 2 . . . . . . 1 . . . . . . . . . . . . 1 . . Recycler 11 | 1 2 . . 1 . . 1 . . . 2 . 1 . . . . 2 . . . . . . . 1 . . Mechanic 3 | . . . . . . . . . . . . . . . . . . . . . . . . . . . . 3 Operator 16 | . . . . 1 . 2 . . 9 . . . 1 . . . . . . 2 . . . . . . 1 . Drone 17 | . . . . . . . . . . . . . . . . . 1 . . . . . . . 1 . . 15 Watcher 35 | . 3 . . 4 . 6 2 2 . . . . 5 . . . . 3 . . . . . 1 2 . 1 6 Swarmer 34 | . 3 2 . 3 . . 5 . . . 5 . . . . . . . . . . 3 . . . 5 . 8 Saboteur 1 | . . . . . . . . . . . . . . . . . . . . . . . . . . . . 1 Grunt 75 | . 5 . . . . 1 10 . . 2 3 . 6 3 . . 2 . . . . 13 4 . 8 1 . 17 Brawler 8 | . . . . . . . . . . . . . . 1 . . 1 . . . . . . . . . . 6 Duelist 7 | . . . . . . . 1 . . . . . . 1 . . . . . . . . . . . . . 5 Protector 5 | . . . . . . . . . . . . . . . . . . . . . . 1 . . . . . 4 Researcher 2 | . . . . . . . . . . . . . . . . . . . . . . . . . . . 1 1 Sentry 18 | . . . . . . . 1 . . 1 1 . 1 1 . . . 1 . 2 . . . 1 . . . 9 Specialist 1 | . . . . . . . . . . . . . . . . . . . . . . 1 . . . . . . Hunter 13 | . . . . . . . . . . . 2 . 4 . . . . . . . . . . . . . . 7 Programmer 28 | . . . . . . . . . . 2 2 . . . . . 2 . . . . 2 . . 1 . . 19 Cetus Guard 2 | . . . . . . . . 1 . . . . . . . . . . . . . . . . 1 . . . Hotshot 6 | . . . . . . . . . . . . . . . . . . . . . . . . . . . . 6 Decapitator 3 | . . . . . . . . . . . . . . . . . . . . . . . . . . . . 3 Immortal 2 | . . . . . . . . . . . . . . . . . . . . . . . . . . . . 2 Striker 9 | . . . . . . . . . . . . . . . . . . . . . . 1 . . . . . 8 Executioner 11 | . . . . . . . . . . . . . . . . . . . . . . . . . . . . 11 V-Series 1 | . . . . . . . . . . . . . . . . . . . . . . . . . . . . 1 Subdweller 5 | . . 5 . . . . . . . . . . . . . . . . . . . . . . . . . . Elite 2 | . . . . . . . . . . . . . . . . . . . . . . . . . . . . 2 Scrapoid 2 | . . . . . . . . . . . . . . . . . . . . . . . . . . . . 2 Samaritan 1 | . . . . . . . . . . . . . . 1 . . . . . . . . . . . . . . Wasp 1 | . . . . . 1 . . . . . . . . . . . . . . . . . . . . . . . Thug 1 | . . . . . . . . . . . . . . . . . . . . . . 1 . . . . . . Savage 1 | . . . . . . . 1 . . . . . . . . . . . . . . . . . . . . . Martyr 3 | . . . . . 1 . . . . . . 2 . . . . . . . . . . . . . . . . Best Kill Streak 15 | 4 5 2 . 3 . 2 7 2 3 2 5 . 6 5 . . 2 2 . 2 . 15 4 1 7 5 3 15 Combat Bots Only 15 | . 3 2 . 3 . 1 6 1 . 2 5 . 5 5 . . 2 1 . 1 . 15 4 1 7 5 . 14 Max Kills in Single Turn 4 | 1 1 1 . 1 1 1 4 1 1 2 1 1 1 1 . . 1 1 . 2 . 2 1 1 2 1 1 4 Gunslinging . | . . . . . . . . . . . . . . . . . . . . . . . . . . . . . Exploded 4 | . . 1 . . . . 3 . . . 1 . . . . . . . . . . . . . . . . 4 Melee 1 | . . . . 1 . . . . . . . . 1 . . . . . . . . . . . . 1 . 1 Uniques/NPCs Destroyed 1 | . . . . . . . . . . . . . . . . . . . . . . . . . . . . 1 Superfortress (-2/Protoforge) Combat | -11 -10 -10 -8 -6 -6 -6 -6 -6 -6 -6 -5 -5 -5 -5 -5 -5 -4 -4 -4 -4 -4 -4 -3 -3 -3 -2 -2 -2 -------- Run | Yrd Mat Sub Scr Fac Was Fac Ext Cet Arc Hub Fac Was Fac Upp Upp Zhi Pro Fac Was Fac Upp War Pro Res Tes Res Qua Frg Hostile Shots Fired 948 | . 47 35 . 64 . 34 58 4 1 26 67 . 10 2 . . 3 10 . 6 2 51 1 33 60 23 67 344 Missed 438 | . 12 11 . 39 . 17 29 3 . 8 13 . 6 2 . . 2 4 . 3 2 24 1 21 33 13 27 168 Intercepted 4 | . . . . . . . . . . . . . . . . . . . . . . . . . . . . 4 Hits 510 | . 35 24 . 25 . 17 29 1 1 18 54 . 4 . . . 1 6 . 3 . 27 . 12 27 10 40 176 Melee 12 | . . . . . . . . . . . . . . . . . . . . . . . . . . . . 12 Projectile 498 | . 35 24 . 25 . 17 29 1 1 18 54 . 4 . . . 1 6 . 3 . 27 . 12 27 10 40 164 AOE 4 | . . . . . . . 2 . . 1 . . . . . . . . . . . . . . 1 . . . Critical Strikes 33 | . 1 . . 2 . 1 1 1 . 1 3 . . . . . 1 . . . . 1 . 1 4 . 1 15 Actively Blocked 3 | . . . . . . . . . . . . . . . . . . . . . . . . . . . . 3 Part Disruptions 1 | . . . . . . . . . . . . . . . . . . . . . . . . . . . . 1 Damage Taken 11365 | . 421 543 . 314 . 375 558 58 24 423 1022 . 58 . . . 19 374 . 76 . 578 . 223 626 232 974 4467 Core 1369 | . 58 135 . 35 . 66 123 . . 36 58 . . . . . . . . . . 56 . 64 47 44 160 487 Absorbed by Shields 646 | . . . . 14 . . 91 12 . . . . . . . . . . . . . . . . . . . 529 Reduced by Siege Mode 54 | . . . . . . . . . . . 54 . . . . . . . . . . . . . . . . . Redirected to Shielding 306 | . . . . 27 . . . . . . . . . . . . . . . . . . . . . . . 279 Regen/Repaired (Parts) 1291 | . . . 217 128 . 54 . . . . 289 3 21 . . . . 163 . 26 . . . 76 151 . . 163 Core Remaining (%) 73 | 100 . . 22 . . . . . . 69 . . . . . . 94 . . . . . 95 . 91 . . 45 Volleys Fired 941 | 20 55 19 . . 37 10 71 11 58 31 29 . 40 28 1 . 23 11 . 20 . 83 11 3 41 6 3 330 Largest 3 | 2 2 2 . . 1 1 1 1 1 3 3 . 1 1 1 . 1 1 . 1 . 1 1 1 1 1 1 2 Hottest 240 | 70 70 70 . . 30 90 90 44 44 112 112 . 51 51 51 . 51 51 . 240 . 240 60 94 113 60 113 200 Shots Fired 1101 | 39 106 36 . . 37 10 71 11 58 65 86 . 41 28 1 . 23 11 . 20 . 82 11 3 41 6 3 312 Gun 369 | 39 106 33 . . 37 1 . . 57 34 57 . . . . . . . . 4 . 1 . . . . . . Cannon 699 | . . . . . . 9 65 11 1 31 29 . 41 28 1 . 23 11 . 16 . 81 11 3 41 6 3 288 Launcher 33 | . . 3 . . . . 6 . . . . . . . . . . . . . . . . . . . . 24 Special . | . . . . . . . . . . . . . . . . . . . . . . . . . . . . . Kinetic 853 | 20 53 31 . . 37 2 40 11 58 65 86 . 41 28 1 . 23 11 . 16 . 81 11 2 35 6 . 195 Thermal 217 | 19 53 5 . . . 8 25 . . . . . . . . . . . . 4 . 1 . . 6 . 3 93 Explosive 30 | . . . . . . . 6 . . . . . . . . . . . . . . . . . . . . 24 Electromagnetic 1 | . . . . . . . . . . . . . . . . . . . . . . . . 1 . . . . Robot Hit Streak 49 | 5 10 15 . . 7 . 8 9 12 6 14 . 34 49 11 . 16 21 . 13 . 20 10 16 24 19 . 31 Robot Miss Streak 5 | 3 3 1 . . 4 1 3 3 4 5 4 . . 1 . . 1 1 . . . 3 2 . 2 . . 5 Penetration Max 2 | . . . . . . . . . 1 1 1 . 1 1 . . 1 1 . 1 . 2 . . . . . 2 Secondary Targets 2 | . 2 . . . . . . . . . . . . . . . . . . . . . . . . . . . Max Gunslinging Chain 1 | . 1 . . . . . . . . . . . . . . . . . . . . . . . . . . . Shots Hit Robots 807 | 21 65 25 . 16 28 18 48 9 42 23 52 3 32 28 1 8 21 16 . 9 . 41 4 4 37 21 7 228 Core Hits 551 | 8 29 11 . 8 4 5 43 5 18 12 28 1 17 12 . 1 9 5 . 4 . 43 9 6 33 11 2 227 Critical Kills 58 | . . . . . . 2 1 . 4 . 4 . 10 4 . . 6 3 . 4 . 11 . . . . . 9 Critical Parts Destroyed 69 | . . . . . . 2 . . 4 . 3 2 13 8 . 3 8 4 . 2 . 17 . . . . . 3 Critical Strikes 167 | . 2 . . 1 . 4 3 2 8 . 9 2 23 12 . 3 14 7 . 6 . 30 1 . 2 . . 38 Burn 2 | . 2 . . . . . . . . . . . . . . . . . . . . . . . . . . . Meltdown 8 | . . . . . . . 1 . . . . . . . . . . . . . . . . . . . . 7 Destroy 105 | . . . . . . . . . 8 . 7 . 21 11 . . 14 5 . 5 . 29 . . . . . 5 Blast 35 | . . . . . . . 2 2 . . 2 . . . . . . . . . . 1 1 . 1 . . 26 Smash 15 | . . . . . . 4 . . . . . 2 2 1 . 3 . 2 . 1 . . . . . . . . Sever 2 | . . . . 1 . . . . . . . . . . . . . . . . . . . . 1 . . . Melee Attacks 336 | . . 9 . 43 5 59 . . . . 3 3 36 3 . 8 . 33 . 4 . . . 25 13 29 16 47 Kinetic 4 | . . . . . . . . . . . . . . . . . . . . . . . . . . . . 4 Impact 133 | . . 9 . 1 . 33 . . . . 3 3 36 3 . 8 . 33 . 4 . . . . . . . . Slashing 198 | . . . . 41 5 26 . . . . . . . . . . . . . . . . . 25 13 29 16 43 Piercing . | . . . . . . . . . . . . . . . . . . . . . . . . . . . . . Sneak Attacks 50 | . . . . 3 5 5 . . . . . 3 5 1 . . . 2 . . . . . 1 . 7 4 14 Combat Hostiles 2 | . . . . . . . . . . . . . 2 . . . . . . . . . . . . . . . Follow-up Attacks 1 | . . . . 1 . . . . . . . . . . . . . . . . . . . . . . . . Damage Inflicted 53457 | 294 893 545 . 709 1009 1277 3205 271 1170 813 1779 275 1557 581 . 842 399 787 . 304 . 1966 451 304 2594 1555 586 29291 Guns 5125 | 294 893 357 . . 612 . . . 1140 589 1139 . . . . . . . . 101 . . . . . . . . Cannons 28085 | . . . . . . . 1586 271 30 220 468 . 521 367 . . 399 176 . 136 . 1966 451 142 2503 436 . 18413 Explosions 10542 | . . 188 . . . . 1619 . . . 157 . . . . . . . . . . . . . . . . 8578 Melee 9657 | . . . . 709 397 1277 . . . . . 275 1036 214 . 842 . 611 . 67 . . . 162 91 1119 583 2274 Ramming 48 | . . . . . . . . . . 4 15 . . . . . . . . . . . . . . . 3 26 Kinetic 28162 | 172 405 506 . . 612 . 1009 271 1170 809 1607 . 521 367 . . 399 176 . 136 . 1966 451 142 2503 436 . 14504 Thermal 5783 | 122 488 39 . . . . 577 . . . . . . . . . . . . 101 . . . . . . . 4456 Explosive 10354 | . . . . . . . 1619 . . . 157 . . . . . . . . . . . . . . . . 8578 Electromagnetic . | . . . . . . . . . . . . . . . . . . . . . . . . . . . . . Impact 3992 | . . . . . . 947 . . . . . 275 1036 214 . 842 . 611 . 67 . . . . . . . . Slashing 5118 | . . . . 709 397 330 . . . . . . . . . . . . . . . . . 162 91 1119 583 1727 Piercing . | . . . . . . . . . . . . . . . . . . . . . . . . . . . . . Highest Corruption 63 | . 5 5 . . . 1 1 1 7 2 2 2 2 2 2 2 2 8 8 8 8 8 1 . 6 . 2 63 Average Corruption 11 | . 3 5 . . . 1 1 1 1 1 1 2 2 2 2 2 2 8 8 8 8 1 1 . 3 . 2 29 Corruption Purged 7 | . . . . . . . . . 7 . . . . . . . . . . . . . . . . . . . Corruption Blocked . | . . . . . . . . . . . . . . . . . . . . . . . . . . . . . Effects 362 | . 15 39 . . . . 4 3 8 4 4 1 12 5 1 1 3 7 1 10 4 3 1 . 2 . 1 233 Message Errors 84 | . 6 9 . . . . 2 2 3 2 1 . 1 1 . . . 2 . 7 1 1 . . 1 . . 45 Matter Fused 74 | . 2 9 . . . . 1 . 4 . . . 2 3 . . 1 2 1 2 2 2 . . 1 . 1 41 Heat Flow Errors 43 | . . 5 . . . . 1 . 1 1 1 1 4 . 1 . 1 1 . . . . 1 . . . . 25 Energy Discharges 31 | . 2 5 . . . . . . . 1 1 . . . . . . 1 . . . . . . . . . 21 Parts Rejected 5 | . . 1 . . . . . . . . . . . . . . . . . . . . . . . . . 4 Parts Fused 3 | . . 1 . . . . . . . . . . 1 . . . . . . . . . . . . . . 1 Data Loss (minor) 34 | . . 3 . . . . . 1 . . . . 1 1 . 1 1 1 . . 1 . . . . . . 24 Data Loss (major) 8 | . . 1 . . . . . . . . . . 1 . . . . . . 1 . . . . . . . 5 Misfires 5 | . . 3 . . . . . . . . 1 . 1 . . . . . . . . . . . . . . . Alerts 8 | . 1 1 . . . . . . . . . . 1 . . . . . . . . . . . . . . 5 Misdirections 39 | . . . . . . . . . . . . . . . . . . . . . . . . . . . . 39 Weapon Failures 28 | . 4 1 . . . . . . . . . . . . . . . . . . . . . . . . . 23 Overload Shots 3 | . . . . . . . . . . . . . . . . . . . . 1 . 2 . . . . . . Effects 1 | . . . . . . . . . . . . . . . . . . . . . . 1 . . . . . . Energy Bleed 1 | . . . . . . . . . . . . . . . . . . . . . . 1 . . . . . . Overflow Damage 5276 | . . 35 . 136 80 551 66 . . . 38 190 478 85 . 579 . 410 . 67 . 7 27 . 83 357 217 1870 Projectiles 1206 | . . . . . . . 1 . . . 38 . . . . . . . . . . 7 27 . 83 . . 1050 Explosions 564 | . . 35 . . . . 65 . . . . . . . . . . . . . . . . . . . . 464 Melee 3506 | . . . . 136 80 551 . . . . . 190 478 85 . 579 . 410 . 67 . . . . . 357 217 356 Knockbacks 86 | . . . . . . 2 2 . . 3 4 . 8 . . . . 3 . . . 9 . . 3 2 . 50 Impact 10 | . . . . . . 2 . . . . . . 6 . . . . 2 . . . . . . . . . . Kinetic 74 | . . . . . . . 2 . . 3 4 . 1 . . . . 1 . . . 9 . . 3 2 . 49 Secondary 2 | . . . . . . . . . . . . . 1 . . . . . . . . . . . . . . 1 Self-Inflicted Damage 99 | . . . . . . . . . . . 49 . . . . . . . . . . . . . . . 1 49 Shots 2 | . . . . . . . . . . . 1 . . . . . . . . . . . . . . . . 1 Rammed 5 | . . . . . . . . . . 1 2 . . . . . . . . . . . . . . . 1 1 Targets Rammed 5 | . . . . . . . . . . 1 2 . . . . . . . . . . . . . . . 1 1 Kicked . | . . . . . . . . . . . . . . . . . . . . . . . . . . . . . Crushed . | . . . . . . . . . . . . . . . . . . . . . . . . . . . . . Highest Temperature 324 | 63 228 244 . 40 10 122 324 6 80 238 241 119 232 152 255 . 153 191 6 144 . 144 124 54 118 198 . 221 Average Temperature 61 | 20 72 110 . 16 6 28 127 6 45 75 73 62 69 62 112 . 17 71 4 75 . 21 33 17 41 41 . 63 Received Heat Transfer 1055 | . 225 108 . 18 . 36 157 . . 72 90 . . . . . . 9 . 9 . 123 . 18 . . 9 181 Effects 1 | . . . . . . . 1 . . . . . . . . . . . . . . . . . . . . . Energy Bleed 1 | . . . . . . . 1 . . . . . . . . . . . . . . . . . . . . . Siege Activations 7 | . . . . . . . . . . 1 6 . . . . . . . . . . . . . . . . . Total Turns 139 | . . . . . . . . . . 8 131 . . . . . . . . . . . . . . . . . Longest Duration 55 | . . . . . . . . . . 8 55 . . . . . . . . . . . . . . . . . Martial Activations . | . . . . . . . . . . . . . . . . . . . . . . . . . . . . . Shielding Activations . | . . . . . . . . . . . . . . . . . . . . . . . . . . . . . Robots Disrupted . | . . . . . . . . . . . . . . . . . . . . . . . . . . . . . Combat Hostiles . | . . . . . . . . . . . . . . . . . . . . . . . . . . . . . Robots Corrupted 17 | . . . . . . 6 . . . . . 1 6 . . 2 . 1 . . . . . . . . . 1 Combat Hostiles 4 | . . . . . . 1 . . . . . . 2 . . 1 . . . . . . . . . . . . Parts Fried 22 | . . . . . . 6 1 . . . . 2 7 . . 1 . 4 . 1 . . . . . . . . Impact Corruptions 61 | . . . . . . 11 . . . . . 2 14 1 . 22 . 7 . 3 . . . . . . . 1 Robots Melted 8 | . . . . . . . 1 . . . . . . . . . . . . . . . . . . . . 7 Combat Hostiles 8 | . . . . . . . 1 . . . . . . . . . . . . . . . . . . . . 7 Parts Melted 25 | . 4 1 . . . . 2 . . . . . . . . . . . . . . . . . . . . 18 Heat Transferred 5588 | 370 1591 111 . . . . 900 . . . . . . . . . . . . 111 . . . . . . . 2505 Parts Sabotaged 4 | . . . . . . . . . . . . . . . . . . . . . . . . . . . . 4 Parts Stolen . | . . . . . . . . . . . . . . . . . . . . . . . . . . . . . Parts Stripped . | . . . . . . . . . . . . . . . . . . . . . . . . . . . . . Power Chain Reactions . | . . . . . . . . . . . . . . . . . . . . . . . . . . . . . Alert | -11 -10 -10 -8 -6 -6 -6 -6 -6 -6 -6 -5 -5 -5 -5 -5 -5 -4 -4 -4 -4 -4 -4 -3 -3 -3 -2 -2 -2 ------- Run | Yrd Mat Sub Scr Fac Was Fac Ext Cet Arc Hub Fac Was Fac Upp Upp Zhi Pro Fac Was Fac Upp War Pro Res Tes Res Qua Frg Maximum Alert Level 5 | . . . . 1 . . 4 3 2 3 2 1 1 . . . . 2 . 1 . . . . 1 2 1 5 Low Security (%) 40 | 100 100 . . 78 100 100 26 . 4 3 . 87 96 . . . . 22 100 96 . . . 100 79 16 50 9 Level 1 13 | . . . . 21 . . 3 . 75 13 4 12 3 . . . . 43 . 3 . . . . 20 6 49 7 Level 2 18 | . . . . . . . 52 . 19 53 95 . . . . . . 34 . . . . . . . 76 . 7 Level 3 13 | . . . . . . . 5 100 . 30 . . . . . . . . . . . . . . . . . 25 Level 4 3 | . . . . . . . 12 . . . . . . . . . . . . . . . . . . . . 10 Level 5 9 | . . . . . . . . . . . . . . . . . . . . . . . . . . . . 38 High Security . | . . . . . . . . . . . . . . . . . . . . . . . . . . . . . Max Security . | . . . . . . . . . . . . . . . . . . . . . . . . . . . . . Peak Influence 3929 | 10 91 . . 247 66 100 1351 929 438 916 640 201 206 . . . . 475 7 201 . . . 191 286 558 286 3929 Initial 752 | . 3 . . . 64 . 41 752 293 65 424 201 70 . . . . 475 7 4 . . . 27 97 160 247 108 Average 633 | 1 28 . . 107 12 34 508 820 329 576 531 149 89 . . . . 316 7 110 . . . 120 83 438 204 1667 Influence Increases 15308 | 35 267 50 . 603 12 572 1716 347 368 1663 546 . 654 185 . 15 140 758 . 265 15 555 80 409 525 521 265 4742 Destroy 0b10 Robot/C 5840 | . 160 40 . 60 . 20 780 160 80 620 260 . 240 120 . . 100 20 . 40 . 400 80 20 180 120 20 2320 Destroy 0b10 Robot/NC 630 | 35 50 . . 30 . 60 40 10 45 25 15 . 40 5 . 15 5 30 . 15 . 5 . 10 15 35 10 135 Destroy Leader 892 | . 40 10 . 18 . 14 84 . . 156 50 . 62 . . . 20 16 . 20 . . . 12 34 12 2 342 Allied During Kill 1646 | . . . . . . . 684 166 125 653 . . . . . . . . . . . . . . . . . 18 Trap Triggered on 0b10 10 | . . . . . . . . . . . . . . . . . . . . . . . . . . . . 10 Successful Hack 639 | . . . . 75 . 33 17 7 . 8 79 . 90 . . . . 31 . 32 . . . 115 58 42 14 38 Disable Machine 750 | . 15 . . 15 . 60 . . 105 135 45 . 45 . . . . 15 . . . . . 15 45 15 45 195 Destroy Structure 1151 | . 2 . . 15 12 40 66 4 13 66 82 . 42 . . . . 46 . 8 . . . 42 28 27 9 649 Advance Influence 450 | . . . . . . . . . . . . . . . . . . 450 . . . . . . . . . . Partial Spotted 705 | . . . . 75 . 60 . . . . . . 30 . . . . 75 . 75 . . . 90 75 . 45 180 Lose Combat Pursuer 2595 | . . . . 315 . 285 45 . . . 15 . 105 60 . . 15 75 . 75 15 150 . 105 90 270 120 855 Influence Decreases 11379 | 30 197 125 . 419 196 487 456 959 914 982 838 475 567 241 66 81 100 776 15 127 105 197 453 275 413 366 514 1005 Entered New Map 3421 | . 2 37 . . 120 . 44 593 440 122 444 375 31 71 26 66 . 15 15 3 55 55 413 13 77 126 194 84 Time Decay 5965 | 30 195 88 . 309 26 432 362 326 434 530 374 80 324 170 40 15 100 326 . 124 50 132 40 262 195 130 120 751 Search Patrol Dispatched 400 | . . . . 100 . . . . . . . . . . . . . 200 . . . . . . . 100 . . Lost Part 320 | . . . . 10 . 10 10 . . . 20 . 10 . . . . 30 . . . 10 . . 20 . 50 150 Lost Ally 451 | . . . . . 50 11 40 40 40 180 . 20 40 . . . . . . . . . . . . 10 . 20 Purge Threat 822 | . . . . . . 34 . . . 150 . . 162 . . . . 205 . . . . . . 121 . 150 . Squads Dispatched 98 | . . . . 10 . 17 4 . . 12 3 . 12 . . . . 9 . 2 . . . 8 5 2 4 10 Investigation 45 | . . . . 7 . 11 . . . 4 2 . 5 . . . . 5 . 1 . . . 5 1 . . 4 Extermination 24 | . . . . 2 . 4 . . . 4 1 . 2 . . . . 3 . . . . . . 3 1 1 3 Reinforcement 23 | . . . . 1 . 2 3 . . 2 . . 2 . . . . 1 . 1 . . . 3 1 1 3 3 Assault 3 | . . . . . . . 1 . . 2 . . . . . . . . . . . . . . . . . . Garrison 3 | . . . . . . . . . . . . . 3 . . . . . . . . . . . . . . . Intercept . | . . . . . . . . . . . . . . . . . . . . . . . . . . . . . Searches Triggered 4 | . . . . 1 . . . . . . . . . . . . . 2 . . . . . . . 1 . . Unchained Authorized 2 | . . . . . . . . . . . . . . . . . . . . . . . . . 1 1 . . Construction Impeded 2 | . . . . . . . 1 . . . . . 1 . . . . . . . . . . . . . . . Haulers Reinforced 3 | . . . . . . . . . . . . . 1 . . . . . . . . . . 1 . 1 . . Active Scanning Responses . | . . . . . . . . . . . . . . . . . . . . . . . . . . . . . Cargo Convoy Interrupts . | . . . . . . . . . . . . . . . . . . . . . . . . . . . . . Stealth | -11 -10 -10 -8 -6 -6 -6 -6 -6 -6 -6 -5 -5 -5 -5 -5 -5 -4 -4 -4 -4 -4 -4 -3 -3 -3 -2 -2 -2 --------- Run | Yrd Mat Sub Scr Fac Was Fac Ext Cet Arc Hub Fac Was Fac Upp Upp Zhi Pro Fac Was Fac Upp War Pro Res Tes Res Qua Frg Distress Signals 29 | . . . . 3 . 3 . 1 . 3 . . 2 . . . 1 3 . 1 . 1 . 4 1 . . 6 Communications Jammed 22 | . . . . . . . . . . . 5 . . . . . . 4 . . . . . . 4 . . 9 Distress Signals 22 | . . . . . . . . . . . 5 . . . . . . 4 . . . . . . 4 . . 9 Times Spotted 730 | . 13 8 . 34 6 64 47 8 21 33 19 6 25 9 . . 8 14 4 4 1 45 3 13 43 27 16 259 Peak Tracking Total 22 | . 4 3 . 9 3 9 8 4 2 9 5 6 6 8 . . 2 4 4 6 1 9 4 5 9 12 7 22 Tactical Retreats 91 | . . . . 12 . 17 2 . . . 1 1 5 2 . . 1 5 . 1 1 3 . 5 5 4 2 24 ECM-based Alert Blocks 54 | . . . . 9 . 38 . . . . . . . . . . . . . . . . . . 7 . . . Traps | -11 -10 -10 -8 -6 -6 -6 -6 -6 -6 -6 -5 -5 -5 -5 -5 -5 -4 -4 -4 -4 -4 -4 -3 -3 -3 -2 -2 -2 ------- Run | Yrd Mat Sub Scr Fac Was Fac Ext Cet Arc Hub Fac Was Fac Upp Upp Zhi Pro Fac Was Fac Upp War Pro Res Tes Res Qua Frg Traps Triggered 35 | . 3 2 . 5 . 2 . . . 1 1 . 2 . . . . 1 . . . . . . 1 . 2 15 Indirectly . | . . . . . . . . . . . . . . . . . . . . . . . . . . . . . Trap Hack Attempts . | . . . . . . . . . . . . . . . . . . . . . . . . . . . . . Triggered . | . . . . . . . . . . . . . . . . . . . . . . . . . . . . . Disarmed . | . . . . . . . . . . . . . . . . . . . . . . . . . . . . . Reprogrammed . | . . . . . . . . . . . . . . . . . . . . . . . . . . . . . Reused 1 | . . . . . . . . . . . . . . . . . . . . . . . . . . . . 1 Traps Extracted . | . . . . . . . . . . . . . . . . . . . . . . . . . . . . . Installed 1 | . . . . . . . . . . . . . . . . . . . . . . . . . . . . 1 Triggered 1 | . . . . . . . . . . . . . . . . . . . . . . . . . . . . 1 Most Traps Carried 1 | . . . 1 1 1 1 1 1 1 1 1 1 1 1 1 1 1 1 1 1 1 1 1 1 1 1 1 1 Machines | -11 -10 -10 -8 -6 -6 -6 -6 -6 -6 -6 -5 -5 -5 -5 -5 -5 -4 -4 -4 -4 -4 -4 -3 -3 -3 -2 -2 -2 ---------- Run | Yrd Mat Sub Scr Fac Was Fac Ext Cet Arc Hub Fac Was Fac Upp Upp Zhi Pro Fac Was Fac Upp War Pro Res Tes Res Qua Frg Machines Disabled 58 | . 1 1 . 1 . 4 . . 7 9 3 . 3 . . . . 1 . . . . . 1 3 1 3 20 Max in Single Turn 2 | . 1 1 . 1 . 1 . . 1 2 1 . 1 . . . . 1 . . . . . 1 1 1 1 2 Garrison Access 8 | . . . . . . 3 . . . . . . 1 . . . . 1 . . . . . 1 . 1 . 1 Network Hub 1 | . . . . . . . . . . 1 . . . . . . . . . . . . . . . . . . Machines Repaired . | . . . . . . . . . . . . . . . . . . . . . . . . . . . . . Machines Dismantled . | . . . . . . . . . . . . . . . . . . . . . . . . . . . . . Machines Sabotaged . | . . . . . . . . . . . . . . . . . . . . . . . . . . . . . Overloaded Fab Kills . | . . . . . . . . . . . . . . . . . . . . . . . . . . . . . Hacking | -11 -10 -10 -8 -6 -6 -6 -6 -6 -6 -6 -5 -5 -5 -5 -5 -5 -4 -4 -4 -4 -4 -4 -3 -3 -3 -2 -2 -2 --------- Run | Yrd Mat Sub Scr Fac Was Fac Ext Cet Arc Hub Fac Was Fac Upp Upp Zhi Pro Fac Was Fac Upp War Pro Res Tes Res Qua Frg Machines Accessed 162 | . 1 1 4 16 . 33 3 2 . 7 10 . 17 . . 3 . 12 . 5 . . . 14 11 6 4 13 Terminals 80 | . 1 . . 7 . 15 3 2 . 7 6 . 9 . . . . 2 . 3 . . . 5 7 2 4 7 Fabricators 10 | . . . . 2 . 3 . . . . . . 2 . . . . 2 . . . . . 1 . . . . Repair Stations 14 | . . . . 2 . 3 . . . . 1 . 1 . . . . 1 . 1 . . . 3 1 . . 1 Recycling Units 23 | . . . . 4 . 7 . . . . 2 . 2 . . . . 3 . . . . . 2 . . . 3 Scanalyzers 17 | . . . . 1 . 2 . . . . 1 . 2 . . . . 2 . 1 . . . 2 2 3 . 1 Garrison Access 10 | . . . . . . 3 . . . . . . 1 . . . . 2 . . . . . 1 1 1 . 1 Total Hacks 443 | . 3 1 12 50 . 74 5 3 . 19 36 . 63 . . 12 . 33 . 19 . . . 31 25 11 10 36 Successful 233 | . . 1 12 25 . 44 3 2 . 5 15 . 36 . . 12 . 19 . 10 . . . 14 13 4 5 13 Failed 209 | . 3 . . 25 . 30 2 1 . 14 21 . 27 . . . . 14 . 9 . . . 17 12 6 5 23 Catastrophic 48 | . . . . 9 . 5 1 . . 3 3 . 4 . . . . 2 . 4 . . . 1 6 . 2 8 Database Lockouts 1 | . . . . . . . . . . . . . . . . . . . . . . . . . . 1 . . Manual 200 | . 3 . . 26 . 42 2 1 . 14 20 . 25 . . . . 14 . 3 . . . 10 9 5 9 17 Terminals 250 | . 3 . . 24 . 39 5 3 . 19 27 . 46 . . . . 9 . 11 . . . 11 19 5 10 19 Fabricators 31 | . . . . 7 . 11 . . . . . . 4 . . . . 4 . . . . . 5 . . . . Repair Stations 43 | . . . . 9 . 6 . . . . 4 . 2 . . . . 5 . 4 . . . 7 2 . . 4 Recycling Units 31 | . . . . 7 . 8 . . . . 2 . 2 . . . . 3 . . . . . 2 . . . 7 Scanalyzers 41 | . . . . 3 . 5 . . . . 3 . 8 . . . . 6 . 4 . . . 4 2 5 . 1 Garrison Access 22 | . . . . . . 5 . . . . . . 1 . . . . 6 . . . . . 2 2 1 . 5 Terminal Hacks 92 | . . 1 12 4 . 14 2 2 . 2 6 . 20 . . 12 . 3 . 1 . . . 3 6 . 3 1 Record 19 | . . . 11 . . 1 . 1 . . . . . . . 4 . . . . . . . . 1 . 1 . Part Schematic 12 | . . . . 3 . 3 . . . . . . 2 . . 4 . . . . . . . . . . . . Prototype ID Bank 4 | . . . . . . . . . . . . . . . . 4 . . . . . . . . . . . . Open Door 5 | . . . . . . 1 2 1 . . . . . . . . . . . . . . . . 1 . . . Level Access Points 1 | . . . . . . . . . . 1 . . . . . . . . . . . . . . . . . . Branch Access Points 4 | . . . . . . . . . . . . . 1 . . . . 1 . 1 . . . 1 . . . . Emergency Access Points 1 | . . . . . . . . . . . . . 1 . . . . . . . . . . . . . . . Machine Index 1 | . . . . . . . . . . . . . . . . . . . . . . . . 1 . . . . Terminal Index 5 | . . . . . . 1 . . . . 1 . 1 . . . . . . . . . . . 1 . . 1 Fabricator Index 2 | . . . . . . . . . . . 1 . 1 . . . . . . . . . . . . . . . Repair Station Index 3 | . . . . 1 . 1 . . . . . . . . . . . . . . . . . . 1 . . . Scanalyzer Index 3 | . . . . . . 1 . . . . 1 . 1 . . . . . . . . . . . . . . . Garrison Index 2 | . . . . . . 1 . . . . . . 1 . . . . . . . . . . . . . . . Alert Level 1 | . . . . . . . . . . . . . . . . . . . . . . . . 1 . . . . Unreport Threat 11 | . . . . . . 2 . . . 1 . . 3 . . . . 2 . . . . . . 2 . 1 . Locate Traps 4 | . . . . . . . . . . . 1 . 3 . . . . . . . . . . . . . . . Extermination Status 1 | . . . . . . . . . . . . . 1 . . . . . . . . . . . . . . . Recall Investigation 2 | . . . . . . 1 . . . . . . 1 . . . . . . . . . . . . . . . Recall Extermination 4 | . . . . . . 2 . . . . . . 2 . . . . . . . . . . . . . . . Recall Reinforcements 2 | . . . . . . . . . . . . . 1 . . . . . . . . . . . . . 1 . Registered Components 1 | . . . . . . . . . . . 1 . . . . . . . . . . . . . . . . . Registered Prototypes 2 | . . . . . . . . . . . 1 . 1 . . . . . . . . . . . . . . . Proto ID Catalog 2 | . . 1 1 . . . . . . . . . . . . . . . . . . . . . . . . . Fabricator Hacks 18 | . . . . 4 . 6 . . . . . . 4 . . . . 2 . . . . . 2 . . . . Network Status 1 | . . . . . . 1 . . . . . . . . . . . . . . . . . . . . . . Load Schematic 10 | . . . . 2 . 3 . . . . . . 2 . . . . 2 . . . . . 1 . . . . Build 7 | . . . . 2 . 2 . . . . . . 2 . . . . . . . . . . 1 . . . . Repair Station Hacks 31 | . . . . 6 . 5 . . . . 2 . 2 . . . . 4 . 4 . . . 2 2 . . 4 Scan Component 16 | . . . . 3 . 3 . . . . 1 . 1 . . . . 2 . 2 . . . 1 1 . . 2 Repair 15 | . . . . 3 . 2 . . . . 1 . 1 . . . . 2 . 2 . . . 1 1 . . 2 Recycling Unit Hacks . | . . . . . . . . . . . . . . . . . . . . . . . . . . . . . Scanalyzer 24 | . . . . 2 . 3 . . . . 1 . 5 . . . . 4 . 4 . . . 1 1 2 . 1 Insert Component 8 | . . . . . . 1 . . . . 1 . 2 . . . . 2 . 1 . . . . 1 . . . Analyze 5 | . . . . . . 1 . . . . . . 1 . . . . 1 . 2 . . . . . . . . Retrieve Study 11 | . . . . 2 . 1 . . . . . . 2 . . . . 1 . 1 . . . 1 . 2 . 1 Garrison Access Hacks 8 | . . . . . . 3 . . . . . . 1 . . . . 1 . . . . . 1 . 1 . 1 Seal Access 8 | . . . . . . 3 . . . . . . 1 . . . . 1 . . . . . 1 . 1 . 1 Unauthorized Hacks 60 | . . . . 9 . 13 1 . . 3 6 . 4 . . . . 5 . 1 . . . 5 4 1 2 6 Terminals 31 | . . . . 4 . 4 1 . . 3 4 . 2 . . . . . . 1 . . . 2 4 1 2 3 Assimilate 6 | . . . . . . 2 . . . . . . . . . . . . . . . . . . 3 1 . . Botnet 23 | . . . . 4 . 2 1 . . 2 4 . 2 . . . . . . . . . . 2 1 . 2 3 Disrupt 1 | . . . . . . . . . . . . . . . . . . . . 1 . . . . . . . . Sabotage 1 | . . . . . . . . . . 1 . . . . . . . . . . . . . . . . . . Fabricators 6 | . . . . 1 . 2 . . . . . . . . . . . 2 . . . . . 1 . . . . Prioritize 2 | . . . . . . 1 . . . . . . . . . . . . . . . . . 1 . . . . Recompile 4 | . . . . 1 . 1 . . . . . . . . . . . 2 . . . . . . . . . . Repair Stations . | . . . . . . . . . . . . . . . . . . . . . . . . . . . . . Recycling Units 23 | . . . . 4 . 7 . . . . 2 . 2 . . . . 3 . . . . . 2 . . . 3 Fedlink 22 | . . . . 4 . 7 . . . . 2 . 2 . . . . 3 . . . . . 2 . . . 2 Scraphulk 1 | . . . . . . . . . . . . . . . . . . . . . . . . . . . . 1 Scanalyzers . | . . . . . . . . . . . . . . . . . . . . . . . . . . . . . Garrison Access . | . . . . . . . . . . . . . . . . . . . . . . . . . . . . . Data Cores Recovered 3 | . . . . . . 1 . . . . . . . . . . . . . 2 . . . . . . . . Used . | . . . . . . . . . . . . . . . . . . . . . . . . . . . . . Hacking Detections 93 | . 1 . . 11 . 17 3 . . 6 6 . 9 . . . . 6 . 1 . . . 11 10 1 3 8 Full Trace Events 14 | . . . . 2 . 3 . . . 3 . . 2 . . . . . . 1 . . . 2 1 . . . Feedback Events . | . . . . . . . . . . . . . . . . . . . . . . . . . . . . . Feedback Blocked 1 | . . . . . . 1 . . . . . . . . . . . . . . . . . . . . . . Robot Schematics Acquired 4 | . . . . . . . . . . . . . . . . . . . . . . . . . . . 1 3 Robots Built . | . . . . . . . . . . . . . . . . . . . . . . . . . . . . . Authchips . | . . . . . . . . . . . . . . . . . . . . . . . . . . . . . Time . | . . . . . . . . . . . . . . . . . . . . . . . . . . . . . Total Robot Build Rating . | . . . . . . . . . . . . . . . . . . . . . . . . . . . . . Part Schematics Acquired 19 | . . . . 3 . 4 . . . . . . 3 . . 4 . 1 . 1 . . . . . . 1 2 Parts Built 8 | . . . . 2 . 2 . . . . . . 3 . . . . . . . . . . 1 . . . . Authchips 1 | . . . . 1 . . . . . . . . . . . . . . . . . . . . . . . . Time 425 | . . . . 72 . 123 . . . . . . 137 . . . . . . . . . . 93 . . . . Total Part Build Rating 41 | . . . . 6 . 10 . . . . . . 18 . . . . . . . . . . 7 . . . . Part Studies Acquired 11 | . . . . 2 . 1 . . . . . . 2 . . . . 1 . 1 . . . 1 . 2 . 1 Parts Repaired 15 | . . . . 3 . 2 . . . . 1 . 1 . . . . 2 . 2 . . . 1 1 . . 2 Time 739 | . . . . 97 . 72 . . . . 54 . 22 . . . . 56 . 115 . . . 18 89 . . 216 Parts Recycled . | . . . . . . . . . . . . . . . . . . . . . . . . . . . . . Recycled Matter . | . . . . . . . . . . . . . . . . . . . . . . . . . . . . . Retrieved Matter . | . . . . . . . . . . . . . . . . . . . . . . . . . . . . . Retrieved Components . | . . . . . . . . . . . . . . . . . . . . . . . . . . . . . Parts Scanalyzed 6 | . . . . . . 1 . . . . 1 . 2 . . . . 1 . 1 . . . . . . . . Part Schematics Acquired 4 | . . . . . . 1 . . . . . . 1 . . . . 1 . 1 . . . . . . . . Parts Damaged 2 | . . . . . . . . . . . . . . . . . . 1 . 1 . . . . . . . . Bothacking | -11 -10 -10 -8 -6 -6 -6 -6 -6 -6 -6 -5 -5 -5 -5 -5 -5 -4 -4 -4 -4 -4 -4 -3 -3 -3 -2 -2 -2 ------------ Run | Yrd Mat Sub Scr Fac Was Fac Ext Cet Arc Hub Fac Was Fac Upp Upp Zhi Pro Fac Was Fac Upp War Pro Res Tes Res Qua Frg Used RIF Installer . | . . . . . . . . . . . . . . . . . . . . . . . . . . . . . Robots Hacked 1 | . . . . 1 . . . . . . . . . . . . . . . . . . . . . . . . Non-combat 1 | . . . . 1 . . . . . . . . . . . . . . . . . . . . . . . . Combat . | . . . . . . . . . . . . . . . . . . . . . . . . . . . . . Robot Hacks Applied 1 | . . . . 1 . . . . . . . . . . . . . . . . . . . . . . . . find_chute 1 | . . . . 1 . . . . . . . . . . . . . . . . . . . . . . . . Relay Couplers Released 2 | . . . . . . . . . . . . . . . . . . . . . . . . 2 . . . . Machine Destruction 2 | . . . . . . . . . . . . . . . . . . . . . . . . 2 . . . . Fabnet Peak Effective % . | . . . . . . . . . . . . . . . . . . . . . . . . . . . . . Robots Rewired 13 | . . . . . . . 13 . . . . . . . . . . . . . . . . . . . . . Allies Hacked . | . . . . . . . . . . . . . . . . . . . . . . . . . . . . . Hacks Repelled . | . . . . . . . . . . . . . . . . . . . . . . . . . . . . . Allies | -11 -10 -10 -8 -6 -6 -6 -6 -6 -6 -6 -5 -5 -5 -5 -5 -5 -4 -4 -4 -4 -4 -4 -3 -3 -3 -2 -2 -2 -------- Run | Yrd Mat Sub Scr Fac Was Fac Ext Cet Arc Hub Fac Was Fac Upp Upp Zhi Pro Fac Was Fac Upp War Pro Res Tes Res Qua Frg Total Allies 65 | . . . . . 19 2 16 5 . . . 19 . . . . . . . . . . . . 2 1 . 1 Largest Group 19 | . . . . . 19 2 14 15 15 12 . 18 2 . . . . . . . . . . . 2 1 . 1 Highest-Rated Group 905 | . . . . . 684 20 588 905 905 723 . 632 50 . . . . . . . . . . . 52 10 . 139 Highest-Rated Ally 159 | . . . . . 50 10 159 136 130 96 . 50 25 . . . . . . . . . . . 26 10 . 139 Total Orders 22 | . . . . . . . 9 . 2 10 . . . . . . . . . . . . . . 1 . . . STAY 12 | . . . . . . . 5 . 1 5 . . . . . . . . . . . . . . 1 . . . FOLLOW 10 | . . . . . . . 4 . 1 5 . . . . . . . . . . . . . . . . . . Ally Attacks 596 | . . . . . 168 . 153 51 23 143 . 21 13 . . . . . . . . . . . . . . 24 Total Damage 14176 | . . . . . 3568 . 3124 1284 490 4067 . 383 174 . . . . . . . . . . . . . . 1086 Kills 85 | . . . . . 8 . 27 7 4 31 . 1 1 . . . . . . . . . . . . . . 6 Allies Corrupted 1 | . . . . . . . . . . . . 1 . . . . . . . . . . . . . . . . Allies Melted 1 | . . . . . . . . . . . . . . . . . . . . . . . . . . . . 1 Intel | -11 -10 -10 -8 -6 -6 -6 -6 -6 -6 -6 -5 -5 -5 -5 -5 -5 -4 -4 -4 -4 -4 -4 -3 -3 -3 -2 -2 -2 ------- Run | Yrd Mat Sub Scr Fac Was Fac Ext Cet Arc Hub Fac Was Fac Upp Upp Zhi Pro Fac Was Fac Upp War Pro Res Tes Res Qua Frg Active Infowar (turns) 20097 | . . 1035 2347 1004 246 1201 828 724 1068 1499 878 163 922 345 92 125 334 723 1 271 106 441 124 567 511 274 258 4010 Optics 12725 | . . . . . . 2 828 724 1068 1499 878 163 922 345 92 125 334 505 . . . . . 187 511 274 258 4010 Sensors 12816 | . . . . 943 246 1201 15 180 968 1499 447 159 737 342 92 125 334 697 1 271 106 439 124 567 495 274 200 2354 Terrain 1335 | . . . . . . . . . . . . . . 181 . . . . . . . 45 . 553 171 261 124 . Seismic 4219 | . . 1035 2347 837 . . . . . . . . . . . . . . . . . . . . . . . . Cloaking 181 | . . . . . . . . . . . . . . . . . . . . . . 2 . 5 . . 2 172 Jamming 1496 | . . . . . . . . . . . 496 . . . . . . 7 1 . . . . 59 135 164 163 471 ECM 646 | . . . . 160 9 387 . . . . . . . . . . . . . . . . . . 90 . . . Robot Analysis Total . | . . . . . . . . . . . . . . . . . . . . . . . . . . . . . Derelict Logs Recovered 9 | . . 1 4 . . . . . . . . . . 1 . . 1 . . . 2 . . . . . . . Drone Launches . | . . . . . . . . . . . . . . . . . . . . . . . . . . . . . Drone Recoveries . | . . . . . . . . . . . . . . . . . . . . . . . . . . . . . Exploration | -11 -10 -10 -8 -6 -6 -6 -6 -6 -6 -6 -5 -5 -5 -5 -5 -5 -4 -4 -4 -4 -4 -4 -3 -3 -3 -2 -2 -2 ------------- Run | Yrd Mat Sub Scr Fac Was Fac Ext Cet Arc Hub Fac Was Fac Upp Upp Zhi Pro Fac Was Fac Upp War Pro Res Tes Res Qua Frg Turns Passed 24925 | 233 691 1333 5872 1013 246 1223 828 724 1068 1499 878 163 922 345 92 125 334 723 12 275 106 477 124 567 511 274 258 4009 Spaces Moved 31180 | 120 298 713 2826 2234 534 3092 810 397 309 766 651 301 2049 844 145 285 742 1740 63 430 404 980 340 1450 1408 697 483 6069 Core 154 | 6 . . 105 . . . 5 . . . . . . . . . . . . . . . . . . . . 38 Treads 4529 | 42 . 499 2387 . . . . 236 309 766 290 . . . . . . . . . . . . . . . . . Legs 584 | 72 298 214 . . . . . . . . . . . . . . . . . . . . . . . . . . Wheels . | . . . . . . . . . . . . . . . . . . . . . . . . . . . . . Hover 2943 | . . . . . . . . . . . . . . . . . . . . . . . . . . . . 2943 Flight 22970 | . . . 334 2234 534 3092 805 161 . . 361 301 2049 844 145 285 742 1740 63 430 404 980 340 1450 1408 697 483 3088 Fastest Speed 6 | 50 120 160 50 18 27 21 25 25 160 160 29 30 30 32 32 28 28 25 19 19 26 23 23 14 17 14 6 6 Average Speed 55 | 131 162 169 205 28 27 26 31 134 160 160 88 30 30 32 32 29 31 26 19 25 26 24 23 19 19 18 13 32 Slowest Speed 1100 | 190 190 190 600 112 27 105 500 160 160 160 250 30 113 32 32 32 32 28 26 26 26 26 23 20 23 91 20 1100 Overloaded Moves 610 | . . . . 21 . 27 30 4 . . . . . . . . . . 60 3 . . . 27 188 . 27 223 Propulsion Burnouts . | . . . . . . . . . . . . . . . . . . . . . . . . . . . . . Robots Hopped 95 | . . . . 19 . 27 5 . . . . . 3 . . . . 6 . 2 . . . 8 12 . 8 5 Potential Cave-ins 4 | . . . . . . 1 . . . . . . . . . . . . . . . . . . . . . 3 Cave-ins Triggered 1 | . . . . . . . . . . . . . . . . . . 1 . . . . . . . . . . Teleports 1 | . . . . . . . . . . . . . . . . . . . . . . . . . . . . 1 Exploration Rate (%) 56 | 8 43 49 92 39 92 65 70 87 93 59 19 91 44 83 7 63 61 32 66 10 75 77 44 39 85 15 58 77 Regions Visited 28 Branch Regions 16 Pre-discovered Areas 7 | . . 1 1 1 . . . . . . . . . . . 3 1 . . . . . . . . . . . Known Exits Taken 18 | . . . . . . 1 1 1 1 1 . . 1 1 1 1 1 . . 1 1 1 1 1 1 1 1 . Unknown Exits Taken 4 | 1 1 1 1 . . . . . . . . . . . . . . . . . . . . . . . . . Scrap Searched 20 | . . 3 11 . . . . . . . . . . 2 . . 2 . . . 2 . . . . . . . Spaces Dug 199 | . . . . 15 . 36 13 . . 6 3 . 20 1 . . . 24 . 4 . . 3 21 10 9 2 32 Terrain Destroyed 612 | . . 21 . 15 1 42 85 1 12 17 53 . 20 1 . . . 24 . 4 . 4 7 21 14 9 4 257 Melee 147 | . . . . 15 . 33 . . . . 3 . 20 1 . . . 24 . 3 . . . 21 7 9 1 10 Projectile 237 | . . . . . 1 9 7 1 12 17 26 . . . . . . . . 1 . 4 7 . 7 . 3 142 AOE 228 | . . 21 . . . . 78 . . . 24 . . . . . . . . . . . . . . . . 105 Terrain Rammed . | . . . . . . . . . . . . . . . . . . . . . . . . . . . . . Walls Destroyed . | . . . . . . . . . . . . . . . . . . . . . . . . . . . . . Machines Disabled . | . . . . . . . . . . . . . . . . . . . . . . . . . . . . . Actions | -11 -10 -10 -8 -6 -6 -6 -6 -6 -6 -6 -5 -5 -5 -5 -5 -5 -4 -4 -4 -4 -4 -4 -3 -3 -3 -2 -2 -2 --------- Run | Yrd Mat Sub Scr Fac Was Fac Ext Cet Arc Hub Fac Was Fac Upp Upp Zhi Pro Fac Was Fac Upp War Pro Res Tes Res Qua Frg Total 37102 | 152 399 790 2894 2528 592 3350 1303 578 826 988 880 368 2248 900 189 312 831 1925 62 561 404 1177 379 1681 1576 794 638 7777 Wait 3482 | . 28 11 . 164 9 166 345 145 443 176 158 56 84 16 44 . 59 102 . 102 1 88 29 166 64 32 115 879 Move 30973 | 119 297 712 2825 2201 533 3038 799 396 308 765 651 300 2042 843 144 284 741 1728 62 425 403 979 339 1433 1384 696 467 6059 Hop 87 | . . . . 14 . 26 5 . . . . . 3 . . . . 6 . 2 . . . 8 11 . 7 5 Pick Up 197 | 5 10 10 27 11 1 6 2 4 5 4 7 2 10 . . 4 1 11 . 1 . 3 . 7 6 4 4 52 Fast Attach 160 | 6 1 1 7 19 . 5 2 6 2 2 6 2 3 2 . 3 1 6 . 1 . 6 . 3 8 9 3 56 Attach 146 | . . 5 6 11 . 8 . 2 4 1 6 . 4 1 . 2 . 4 . 1 . 2 . 11 7 5 7 59 Detach 117 | . . 2 5 5 . 6 2 2 . . 4 1 5 2 . 3 . . . 1 . 3 . 8 8 2 4 54 Swap 174 | 2 4 12 4 14 3 14 10 1 1 2 5 1 13 1 . 3 4 13 . 4 . 3 . 10 12 3 4 31 Drop 262 | . 4 9 20 23 4 12 4 11 5 6 9 3 8 4 . 5 2 11 . . . 10 . 7 16 8 2 79 Fire 941 | 20 55 19 . . 37 10 71 11 58 31 29 . 40 28 1 . 23 11 . 20 . 83 11 3 41 6 3 330 Melee 334 | . . 9 . 41 5 59 . . . . 3 3 36 3 . 8 . 33 . 4 . . . 25 13 29 16 47 Ram 2 | . . . . . . . . . . . . . . . . . . . . . . . . . . . 1 1 Kick . | . . . . . . . . . . . . . . . . . . . . . . . . . . . . . Crush 3 | . . . . . . . . . . 1 2 . . . . . . . . . . . . . . . . . Escape Stasis 90 | . . . . 25 . . . . . . . . . . . . . . . . . . . . 6 . 5 54 Rewire 63 | . . . . . . . 63 . . . . . . . . . . . . . . . . . . . . . Trap 1 | . . . . . . . . . . . . . . . . . . . . . . . . . . . . 1 Miscellaneous 70 | . . . . . . . . . . . . . . . . . . . . . . . . . . . . 70 Route ------- -11/Scrapyard -10/Materials (discovered 4 exits: [*Mat] / [*Min x2] / *Sub) -10/Subcaves (discovered 2 exits: [*Mat] / *Scr) -8/Scraptown (discovered 2 exits: *Fac x2) -6/Factory (discovered 2 exits: *Fac / *Low) -6/Waste -6/Factory (discovered 3 exits: *Fac / *Low / *Ext) -6/Extension (discovered 2 exits: *Fac / *Cet) -6/Cetus (discovered 2 exits: *Fac / *Arc) -6/Archives (discovered 3 exits: *Fac / *Hub x2) -6/Hub_04(d) (discovered 4 exits: *Fac x4) -5/Factory (discovered 2 exits: *Fac / *Upp) -5/Waste -5/Factory (discovered 2 exits: *Upp x2) -5/Upper Caves -5/Upper Caves -5/Zhirov -4/Proximity Caves -4/Factory (discovered 4 exits: *Res / Upp x2 / Arm) -4/Waste -4/Factory (discovered 3 exits: *Upp x2 / Arm) -4/Upper Caves -4/Warlord -3/Proximity Caves -3/Research (discovered 2 exits: *Tes x2) -3/Testing -2/Research (discovered 2 exits: [*Acc] / *Qua) -2/Quarantine (discovered 2 exits: [*Sec] / *Frg) -2/Protoforge 0bPrime History --------- Turn | Location | Event 38 | -11/Scrapyard | Discovered new exit (range 15) 234 | -11/Scrapyard | Entered Materials 308 | -10/Materials | Build established: Mutant 444 | -10/Materials | Discovered new exit (range 8) 684 | -10/Materials | Discovered new exit (range 12) 806 | -10/Materials | Discovered new exit (range 15) 856 | -10/Materials | Discovered new exit (range 10) 925 | -10/Materials | Entered Subcaves 926 | -10/Subcaves | Approached by a straggling Scientist 950 | -10/Subcaves | Discovered new exit (range 10) 1175 | -10/Subcaves | Learned location of Zion (-7) 1175 | -10/Subcaves | Met a Zionite searching for "candidates" 1193 | -10/Subcaves | A swath of the cavern ceiling suddenly collapsed 1499 | -10/Subcaves | Visited 4L-MR0's lab 1515 | -10/Subcaves | Found Gun Armor 1643 | -10/Subcaves | Learned Materials emergency access door positions 1653 | -10/Subcaves | Shifting Twisted Machinery released Battle Rifle 1657 | -10/Subcaves | Shifting Twisted Machinery released Hvy. Riot Gun 1885 | -10/Subcaves | Core integrity fell below 50% 1931 | -10/Subcaves | Disturbed a concealed Subdweller 2061 | -10/Subcaves | Shifting Twisted Machinery released Flamer 2180 | -10/Subcaves | Scientist uncovered a shortcut to Scraptown 2258 | -10/Subcaves | Entered Scraptown 2258 | -8/Scraptown | System corruption cleaned by C-Scrubber 2628 | -8/Scraptown | Scanned Subdweller tech in exchange for log data 2633 | -8/Scraptown | Learned Research garrison access intel 2634 | -8/Scraptown | Learned location of Extension (-6) 2636 | -8/Scraptown | Learned Factory terminal intel 2639 | -8/Scraptown | Learned Factory security intel 2662 | -8/Scraptown | Discovered new exit (range 7) 2786 | -8/Scraptown | Visited Cyclists 2838 | -8/Scraptown | Visited CR-KLE's Repair Center 3057 | -8/Scraptown | Visited TADAMA 3082 | -8/Scraptown | Visited Bundlers 3220 | -8/Scraptown | Visited Shadow of the Wyrm 3254 | -8/Scraptown | Visited Awakened 3289 | -8/Scraptown | Visited Fellowship of the Rings 3322 | -8/Scraptown | Visited UFD Registry 3326 | -8/Scraptown | Registered with UFD as "Flakcycle" 3446 | -8/Scraptown | Guru changed UFD alias to "Shadowrigger" 3633 | -8/Scraptown | Visited Research Penetration Think Tank 3668 | -8/Scraptown | Visited Curators Association 3746 | -8/Scraptown | Delivered Scrap Shield to a Scientist 3948 | -8/Scraptown | Visited Junk Repository 4023 | -8/Scraptown | Visited DA-N13 Charitable Foundation 4039 | -8/Scraptown | Found DCF Scrap (28 items) 4086 | -8/Scraptown | Visited Scrapoid Pod Storage 4175 | -8/Scraptown | Visited Chapter 10 4230 | -8/Scraptown | Visited Science Guys 4309 | -8/Scraptown | Visited Scrap Suit Storage 4355 | -8/Scraptown | Visited Abandonware Association 4367 | -8/Scraptown | Learned abandonware demo "OVRCLOCK.EXE" 4373 | -8/Scraptown | Learned abandonware demo "TRNCOAT.EXE" 4373 | -8/Scraptown | Learned abandonware demo "POISON.EXE" 6107 | -8/Scraptown | CR-KLE repaired 6 parts 8033 | -8/Scraptown | Met Optimus 8033 | -8/Scraptown | Accepted into 0bPrime 8122 | -8/Scraptown | Discovered new exit (range 5) 8130 | -8/Scraptown | Entered Factory 8130 | -6/Factory | Evolved 8 slots: Propulsion x3, Utility x5 8132 | -6/Factory | Loaded intel: 28 terminal locations 8264 | -6/Factory | Loaded intel: 8 recycling unit locations 8463 | -6/Factory | Learned location of Protoforge (-2) 8492 | -6/Factory | Build established: Sprinter 8557 | -6/Factory | Repaired Imp. Light Armor Plating? 8799 | -6/Factory | Repaired Imp. Light Armor Plating 8830 | -6/Factory | Search patrols dispatched 8841 | -6/Factory | Repaired Cld. Cesium-ion Thruster 8894 | -6/Factory | Discovered new exit (range 16) 8944 | -6/Factory | Discovered new exit (range 8) 9016 | -6/Factory | Build established: Hacker-Sprinter 9060 | -6/Factory | Fabricated Hacking Suite? 9128 | -6/Factory | Fabricated Hacking Suite (x1) 9143 | -6/Factory | Sucked down chute 9143 | -6/Factory | Entered Waste 9150 | -6/Waste | Spotted C-40 Crusher 9152 | -6/Waste | Spotted C-40 Crusher 9160 | -6/Waste | Spotted C-40 Crusher 9167 | -6/Waste | Warlord forces began an assault 9187 | -6/Waste | Allies destroyed C-40 Crusher 9192 | -6/Waste | Allies destroyed C-40 Crusher 9193 | -6/Waste | Spotted C-40 Crusher 9199 | -6/Waste | Allies destroyed C-40 Crusher 9223 | -6/Waste | Allies destroyed C-40 Crusher 9225 | -6/Waste | Spotted C-40 Crusher 9236 | -6/Waste | Allies destroyed C-40 Crusher 9249 | -6/Waste | Lost 5 allies 9250 | -6/Waste | Spotted C-40 Crusher 9286 | -6/Waste | Discovered new exit (range 12) 9294 | -6/Waste | Allies destroyed C-40 Crusher 9389 | -6/Waste | Identified exit to Factory 9389 | -6/Waste | Entered Factory 9422 | -6/Factory | Loaded intel: 8 recycling unit locations 9718 | -6/Factory | Discovered new exit (range 4) 9719 | -6/Factory | Identified exit to Factory 9793 | -6/Factory | Discovered new exit (range 7) 9796 | -6/Factory | Identified exit to Lower Caves 9903 | -6/Factory | Noticed a derelict Sapper rigging charges 10014 | -6/Factory | Fabricated Imp. Hacking Suite? 10087 | -6/Factory | Discovered new exit (range 10) 10287 | -6/Factory | Repaired Mic. Nuclear Core 10445 | -6/Factory | Fabricated Cld. Cesium-ion Thruster (x1) 10458 | -6/Factory | Repaired Nuclear Pulse Thruster+? 10612 | -6/Factory | Identified exit to Extension 10612 | -6/Factory | Entered Extension 10853 | -6/Extension | Rescued A7 10857 | -6/Extension | Rescued a captive Derelict 10858 | -6/Extension | Rescued a captive Derelict 11158 | -6/Extension | Spotted B-75 Beast 11197 | -6/Extension | Allies destroyed B-75 Beast 11199 | -6/Extension | Spotted B-75 Beast 11212 | -6/Extension | Build established: Commander-Sprinter 11227 | -6/Extension | Allies destroyed B-75 Beast 11304 | -6/Extension | Discovered new exit (range 21) 11304 | -6/Extension | Discovered exit to Factory (range 21) 11312 | -6/Extension | First assault squad dispatched 11320 | -6/Extension | Disrupted transfer network 11383 | -6/Extension | Identified exit to Cetus 11440 | -6/Extension | Entered Cetus 11440 | -6/Cetus | Accompanied by 12 allies (A7) 11445 | -6/Cetus | Acquired a Cetus Manufacturing Module code from A7 11456 | -6/Cetus | Spotted Cetus Guard 11456 | -6/Cetus | Spotted Cetus Guard 11459 | -6/Cetus | Spotted Cetus Guard 11459 | -6/Cetus | Spotted Cetus Guard 11470 | -6/Cetus | Destroyed Cetus Guard 11473 | -6/Cetus | Allies destroyed Cetus Guard 11473 | -6/Cetus | Allies destroyed Cetus Guard 11479 | -6/Cetus | Allies destroyed Cetus Guard 11546 | -6/Cetus | Started Cetus Manufacturing Module 11562 | -6/Cetus | Escorted A7 to Cetus Mainframe 11571 | -6/Cetus | Manufactured an Enhanced Grunt 11591 | -6/Cetus | Discovered new exit (range 21) 11596 | -6/Cetus | Manufactured an Enhanced Grunt 11621 | -6/Cetus | Manufactured an Enhanced Grunt 11646 | -6/Cetus | Manufactured an Enhanced Grunt 11671 | -6/Cetus | Manufactured an Enhanced Grunt 11677 | -6/Cetus | Spotted Cetus Guard 11678 | -6/Cetus | Spotted Cetus Guard 11685 | -6/Cetus | Spotted Cetus Guard 11685 | -6/Cetus | Spotted Cetus Guard 11686 | -6/Cetus | Discovered exit to Factory (range 21) 11698 | -6/Cetus | Allies destroyed Cetus Guard 11701 | -6/Cetus | Allies destroyed Cetus Guard 11710 | -6/Cetus | Allies destroyed Cetus Guard 11711 | -6/Cetus | Allies destroyed Cetus Guard 11722 | -6/Cetus | Met Revision 17 11787 | -6/Cetus | Build established: Commander-Mutant 12116 | -6/Cetus | Identified exit to Archives 12164 | -6/Cetus | Entered Archives 12164 | -6/Archives | Accompanied by 15 allies (A7) 12169 | -6/Archives | Received a hacking code to weaken MAIN.C 12226 | -6/Archives | Attached Gun Armor, gained temporary slots: Weapon x2 12229 | -6/Archives | Discovered new exit (range 22) 12259 | -6/Archives | Discovered new exit (range 21) 12265 | -6/Archives | Build established: Commander-Skirmisher 12425 | -6/Archives | Discovered exit to Factory (range 16) 12962 | -6/Archives | Identified exit to Hub_04(d) 13136 | -6/Archives | Build established: Commander-Tank 13232 | -6/Archives | Entered Hub_04(d) 13232 | -6/Hub_04(d) | Accompanied by 12 allies 13419 | -6/Hub_04(d) | Spotted B-75 Beast 13439 | -6/Hub_04(d) | Allies destroyed B-75 Beast 13964 | -6/Hub_04(d) | Build established: Scavenger-Tank 14632 | -6/Hub_04(d) | First assault squad dispatched 14682 | -6/Hub_04(d) | Network Hub disabled 14713 | -6/Hub_04(d) | Lost 3 allies 14731 | -6/Hub_04(d) | Entered Factory 14731 | -5/Factory | Evolved 2 slots: Propulsion x1, Utility x1 14820 | -5/Factory | Discovered new exit (range 22) 15023 | -5/Factory | Discovered new exit (range 9) 15040 | -5/Factory | Identified exit to Factory 15197 | -5/Factory | Loaded intel: 8 recycling unit locations 15531 | -5/Factory | Repaired Centrium Medium Armor Plating 15609 | -5/Factory | Sucked down chute 15609 | -5/Factory | Entered Waste 15610 | -5/Waste | Met a frightened Derelict 15612 | -5/Waste | Spotted C-40 Crusher 15618 | -5/Waste | Spotted C-40 Crusher 15620 | -5/Waste | Found Prototype Launcher 15620 | -5/Waste | Identified Point Singularity Launcher 15629 | -5/Waste | Found Prototype Device 15629 | -5/Waste | Identified Exp. Thermal Shield 15654 | -5/Waste | Spotted C-40 Crusher 15655 | -5/Waste | Spotted C-40 Crusher 15669 | -5/Waste | Spotted C-40 Crusher 15717 | -5/Waste | Spotted C-40 Crusher 15730 | -5/Waste | Build established: Hacker-Scout 15738 | -5/Waste | Discovered new exit (range 12) 15742 | -5/Waste | Warlord forces began an assault 15772 | -5/Waste | Identified exit to Factory 15772 | -5/Waste | Entered Factory 15772 | -5/Factory | Accompanied by 2 allies 15816 | -5/Factory | Garrison activated, responded to threat 15870 | -5/Factory | Spotted B-75 Beast 15876 | -5/Factory | Allied Derelicts emerged from ambush trap array 15896 | -5/Factory | Found Prototype Processor 15896 | -5/Factory | Identified Exp. Targeting Computer 15910 | -5/Factory | Identified exit to Upper Caves 16004 | -5/Factory | Loaded intel: 8 recycling unit locations 16039 | -5/Factory | Fabricated Hyp. Gauss Cannon? 16319 | -5/Factory | Repaired Adv. Weapon Cycler? 16649 | -5/Factory | Fabricated Tri-rail Accelerator? 16694 | -5/Factory | Entered Upper Caves 16696 | -5/Upper Caves | UFD Scientist delivered a prototype 16702 | -5/Upper Caves | Found Prototype Protection 16702 | -5/Upper Caves | Identified Enh. Scrap Shield 16780 | -5/Upper Caves | Learned Factory interactive machine intel 17005 | -5/Upper Caves | Build established: Scientist-Scout 17025 | -5/Upper Caves | Discovered new exit (range 10) 17039 | -5/Upper Caves | Identified exit to Upper Caves 17039 | -5/Upper Caves | Entered another Upper Caves area 17047 | -5/Upper Caves | Discovered new exit (range 5) 17061 | -5/Upper Caves | Identified exit to Zhirov 17131 | -5/Upper Caves | Entered Zhirov 17132 | -5/Zhirov | Discovered new exit (range 3) 17138 | -5/Zhirov | Met Zhirov 17144 | -5/Zhirov | Learned location of Quarantine (-2) 17144 | -5/Zhirov | Learned location of Testing (-3) 17144 | -5/Zhirov | Learned location of Command (-1) 17149 | -5/Zhirov | Zhirov requested help retrieving the SGEMP Prototype 17155 | -5/Zhirov | Found Alien Artifact 17155 | -5/Zhirov | Identified Integrated Dissipator 17155 | -5/Zhirov | Installed Integrated Dissipator, increased core heat dissipation (+20) 17161 | -5/Zhirov | Found Alien Artifact 17255 | -5/Zhirov | Identified exit to Proximity Caves 17256 | -5/Zhirov | Entered Proximity Caves 17329 | -4/Proximity Caves | Learned location of Armory (-4) 17472 | -4/Proximity Caves | Spotter reported a threat 17529 | -4/Proximity Caves | Spotter reported a threat 17558 | -4/Proximity Caves | Spotted B-86 Titan 17588 | -4/Proximity Caves | Spotter reported a threat 17588 | -4/Proximity Caves | Discovered exit to Factory (range 8) 17590 | -4/Proximity Caves | Entered Factory 17590 | -4/Factory | Evolved 2 slots: Propulsion x1, Utility x1 17591 | -4/Factory | Loaded intel: 53 interactive machine locations 17592 | -4/Factory | Discovered new exit (range 17) 17597 | -4/Factory | Identified exit to Research 17612 | -4/Factory | Build established: Scout 17840 | -4/Factory | Search patrols dispatched 17840 | -4/Factory | Found Prototype Device 17840 | -4/Factory | Identified Adv. EM Shield 17871 | -4/Factory | Loaded intel: 8 recycling unit locations 18023 | -4/Factory | Spotted B-86 Titan 18090 | -4/Factory | Search patrols dispatched 18095 | -4/Factory | Crushed by falling debris 18126 | -4/Factory | Lost 3 parts (1n2u) 18158 | -4/Factory | Repaired Nuclear Pulse Array+ 18187 | -4/Factory | Repaired Nuclear Pulse Array+ 18304 | -4/Factory | Identified exit to Upper Caves 18304 | -4/Factory | Identified exit to Armory 18313 | -4/Factory | Sucked down chute 18313 | -4/Factory | Entered Waste 18317 | -4/Waste | Spotted C-40 Crusher 18322 | -4/Waste | Spotted C-40 Crusher 18323 | -4/Waste | Spotted C-40 Crusher 18324 | -4/Waste | Discovered new exit (range 10) 18324 | -4/Waste | Spotted C-40 Crusher 18325 | -4/Waste | Identified exit to Factory 18325 | -4/Waste | Entered Factory 18484 | -4/Factory | Build established: Hacker-Sprinter 18532 | -4/Factory | Repaired Broken Imp. Terrain Scan Processor 18595 | -4/Factory | Repaired Impulse Thruster+ 18600 | -4/Factory | Entered Upper Caves 18602 | -4/Upper Caves | Attracted the attention of an 0b10 checkpoint 18615 | -4/Upper Caves | A Derelict revealed a hidden shortcut to "reach the base" 18636 | -4/Upper Caves | Learned Research terminal intel 18645 | -4/Upper Caves | Encountered a Warlord checkpoint 18647 | -4/Upper Caves | Learned location of 1 exit from Proximity Caves 18706 | -4/Upper Caves | Identified exit to Warlord 18706 | -4/Upper Caves | Entered Warlord 18715 | -4/Warlord | System corruption cleaned by Quarantine Array 18774 | -4/Warlord | Rebuked by Warlord 18799 | -4/Warlord | Warlord's base attacked by MAIN.C 18844 | -4/Warlord | Found Prototype Device 18844 | -4/Warlord | Identified Thermal Barrier 18852 | -4/Warlord | Found Prototype Device 18852 | -4/Warlord | Identified Exp. Cloaking Device 18863 | -4/Warlord | Found Prototype Hackware 18863 | -4/Warlord | Identified System Mapper 19014 | -4/Warlord | Warlord forces counterattacked 19134 | -4/Warlord | Spotted Striker 19139 | -4/Warlord | Spotted Striker 19150 | -4/Warlord | Destroyed Striker 19160 | -4/Warlord | Build established: Hacker-Scout 19179 | -4/Warlord | Discovered new exit (range 13) 19183 | -4/Warlord | Identified exit to Proximity Caves 19183 | -4/Warlord | Entered Proximity Caves 19191 | -3/Proximity Caves | Lost 10 allies 19193 | -3/Proximity Caves | Destroyed 15 combat bots 19307 | -3/Proximity Caves | Entered Research 19307 | -3/Research | Evolved 2 slots: Power x1, Propulsion x1 19308 | -3/Research | Loaded intel: 22 terminal locations 19309 | -3/Research | Loaded intel: 4 garrison access locations 19356 | -3/Research | Repaired Nuclear Pulse Array+ 19476 | -3/Research | Identified exit to Testing 19480 | -3/Research | Spotted B-86 Titan 19507 | -3/Research | Revision forces began assault on 0b10 19607 | -3/Research | Met up with Revision 17++ 19672 | -3/Research | Fabricated Exp. Optical Array (x1) 19735 | -3/Research | Loaded intel: 5 recycling unit locations 19874 | -3/Research | Entered Testing 19882 | -3/Testing | Lost 3 allies 19942 | -3/Testing | Unchained authorized (CL-0N3) 19968 | -3/Testing | Found Prototype Energy Cannon 19971 | -3/Testing | Identified Imp. Potential Cannon 20012 | -3/Testing | Repaired Tri-rail Accelerator? 20034 | -3/Testing | Spotted PD-OMFA3MFRN5 20055 | -3/Testing | Found Prototype Device 20055 | -3/Testing | Identified 2N-1CE's Frost Array 20093 | -3/Testing | K-01 Serf reconstituted as Cetus Guard 20093 | -3/Testing | Spotted Cetus Guard 20153 | -3/Testing | Found Prototype Energy Cannon 20153 | -3/Testing | Identified Hpw. Disruptor Cannon 20231 | -3/Testing | Destroyed 7 combat bots 20238 | -3/Testing | Destroyed Cetus Guard 20238 | -3/Testing | Cetus Guard reconstituted as CL-0N3 20344 | -3/Testing | A-15 Conveyor reconstituted as Combat Programmer 20348 | -3/Testing | Spotted Combat Programmer 20375 | -3/Testing | Discovered new exit (range 6) 20382 | -3/Testing | Found Prototype Device 20382 | -3/Testing | Identified Exp. Hardlight Generator 20385 | -3/Testing | Identified exit to Research 20385 | -3/Testing | Entered Research 20385 | -2/Research | Evolved 2 slots: Utility x2 20475 | -2/Research | Discovered new exit (range 4) 20476 | -2/Research | Identified exit to Quarantine 20476 | -2/Research | Found Gamma Bomb Array 20545 | -2/Research | Unchained authorized (CL-0N3) 20629 | -2/Research | Discovered new exit (range 22) 20635 | -2/Research | Search patrols dispatched 20648 | -2/Research | Central database locked down 20659 | -2/Research | Entered Quarantine 20665 | -2/Quarantine | Found Alien Artifact 20667 | -2/Quarantine | Identified Subatomic Replicator 20667 | -2/Quarantine | Used Subatomic Replicator to create Alien Artifact 20832 | -2/Quarantine | Lost 4 parts (2n2u) 20847 | -2/Quarantine | Found Alien Artifact 20847 | -2/Quarantine | Identified Dimensional Node Initializer 20847 | -2/Quarantine | Initialized slip node 20848 | -2/Quarantine | Found Dimensional Node Initializer 20881 | -2/Quarantine | Found Alien Impact Weapon 20896 | -2/Quarantine | Spotted Fortress 20910 | -2/Quarantine | Discovered new exit (range 6) 20910 | -2/Quarantine | Discovered new exit (range 7) 20911 | -2/Quarantine | Identified exit to Protoforge 20917 | -2/Quarantine | Entered Protoforge 21000 | -2/Protoforge | Spotted Hotshot 21000 | -2/Protoforge | Spotted Hotshot 21001 | -2/Protoforge | Superfortress began startup sequence 21076 | -2/Protoforge | Discovered new exit (range 19) 21076 | -2/Protoforge | Spotted Hotshot 21076 | -2/Protoforge | Spotted Hotshot 21086 | -2/Protoforge | Destroyed Hotshot 21099 | -2/Protoforge | Destroyed Hotshot 21329 | -2/Protoforge | Repaired Electron Diverter 21397 | -2/Protoforge | Spotted Hotshot 21397 | -2/Protoforge | Spotted Hotshot 21399 | -2/Protoforge | Destroyed Hotshot 21402 | -2/Protoforge | Destroyed Hotshot 21440 | -2/Protoforge | Repaired Cld. Impulse Thruster? 21454 | -2/Protoforge | Forge Plexus network access discovered 21461 | -2/Protoforge | Spotted AP7-3 21467 | -2/Protoforge | Spotted Decapitator 21499 | -2/Protoforge | Spotted AP7-3 21531 | -2/Protoforge | Spotted Decapitator 21532 | -2/Protoforge | Spotted Decapitator 21541 | -2/Protoforge | Destroyed Decapitator 21543 | -2/Protoforge | Destroyed Decapitator 21614 | -2/Protoforge | Lost 4 parts (1p1n2u) 21649 | -2/Protoforge | Found Cep. Chromion Battery 21654 | -2/Protoforge | Found Crosscalibrator 21655 | -2/Protoforge | Spotted Immortal 21655 | -2/Protoforge | Spotted Immortal 21680 | -2/Protoforge | Destroyed Immortal 21698 | -2/Protoforge | Destroyed Immortal 21701 | -2/Protoforge | Spotted Decapitator 21701 | -2/Protoforge | Spotted Decapitator 21701 | -2/Protoforge | Spotted Decapitator 21701 | -2/Protoforge | Spotted Decapitator 21709 | -2/Protoforge | System corruption reached 10% 21710 | -2/Protoforge | Found Exp. Terror Saw 21712 | -2/Protoforge | Found Faulty Cep. Heavy Railcannon 21715 | -2/Protoforge | Found Faulty Cep. Heavy Railcannon 21716 | -2/Protoforge | Found Cep. Plasma Driver 21719 | -2/Protoforge | Found Cep. Helical Railcannon 21791 | -2/Protoforge | Found Cep. NT7 Matterbank 21798 | -2/Protoforge | Spotted EXE-6 21798 | -2/Protoforge | Spotted EXE-6 21804 | -2/Protoforge | Spotted Decapitator 21806 | -2/Protoforge | Spotted Decapitator 21855 | -2/Protoforge | UFD initiated attack on Protoforge (Readiness: Maximal) 21855 | -2/Protoforge | Loaded intel: 3 recycling unit locations 21860 | -2/Protoforge | Initialized slip node 21882 | -2/Protoforge | Identified Supercharged TR 21882 | -2/Protoforge | Warped through subspace to slip node 21883 | -2/Protoforge | Scraphulk reinforcements arrived? 21883 | -2/Protoforge | Spotted Hotshot 21885 | -2/Protoforge | Destroyed EXE-6 21887 | -2/Protoforge | Destroyed EXE-6 21889 | -2/Protoforge | Spotted Immortal 21890 | -2/Protoforge | Found Prototype Processor 21890 | -2/Protoforge | Identified Exp. Armor Integrity Analyzer 21891 | -2/Protoforge | Optimus attacked Superfortress 21891 | -2/Protoforge | Optimus greeted in Protoforge 21892 | -2/Protoforge | Found Prototype Processor 21892 | -2/Protoforge | Identified Exp. Core Analyzer 21894 | -2/Protoforge | Found Exp. Core Analyzer 21895 | -2/Protoforge | Spotted Decapitator 21896 | -2/Protoforge | Found Exp. Kinecellerator 21900 | -2/Protoforge | Spotted Executioner 21901 | -2/Protoforge | Spotted Decapitator 21907 | -2/Protoforge | Allies destroyed Executioner 21908 | -2/Protoforge | Destroyed Superfortress 21911 | -2/Protoforge | Found Prototype Protection 21911 | -2/Protoforge | Identified Centrium Heavy Armor Plating 21936 | -2/Protoforge | Found Prototype Processor 21936 | -2/Protoforge | Identified Exp. Melee Analysis Suite 21939 | -2/Protoforge | Found Cep. Antimissile System 21948 | -2/Protoforge | Found Prototype Launcher 21949 | -2/Protoforge | Identified Hellfire Missile Launcher 21986 | -2/Protoforge | Met 7R-MNS 21989 | -2/Protoforge | Lost 16 allies 22065 | -2/Protoforge | Spotted Decapitator 22069 | -2/Protoforge | Spotted Decapitator 22073 | -2/Protoforge | Destroyed Decapitator 22076 | -2/Protoforge | Spotted V835-d 22076 | -2/Protoforge | Spotted V842-g 22083 | -2/Protoforge | Spotted Striker 22087 | -2/Protoforge | Spotted Striker 22091 | -2/Protoforge | Allies destroyed Striker 22098 | -2/Protoforge | Destroyed Striker 22098 | -2/Protoforge | Allies destroyed V835-d 22114 | -2/Protoforge | Allies destroyed V842-g 22117 | -2/Protoforge | Spotted Executioner 22121 | -2/Protoforge | Spotted Striker 22210 | -2/Protoforge | Identified Core Stripper 22368 | -2/Protoforge | Found Cep. Fieldthrust Drive 22373 | -2/Protoforge | Found Faulty Cep. Fieldthrust Drive 22374 | -2/Protoforge | Found Faulty Cep. Fieldthrust Drive 22549 | -2/Protoforge | Spotted Decapitator 22549 | -2/Protoforge | Spotted Decapitator 22549 | -2/Protoforge | Spotted Decapitator 22549 | -2/Protoforge | Spotted Decapitator 22549 | -2/Protoforge | Spotted Decapitator 22621 | -2/Protoforge | Found Cep. Zero-point Core 22624 | -2/Protoforge | Found Faulty Cep. Zero-point Core 22801 | -2/Protoforge | Found Cep. Gyrokinetic System 22804 | -2/Protoforge | Found Faulty Cep. Combat Aerolev Unit 22808 | -2/Protoforge | Found Faulty Cep. Gyrokinetic System 22815 | -2/Protoforge | Found Faulty Cep. Gyrokinetic System 22817 | -2/Protoforge | System corruption reached 30% 22916 | -2/Protoforge | Spotted V847-a 22975 | -2/Protoforge | Spotted Striker 22977 | -2/Protoforge | Spotted Striker 22989 | -2/Protoforge | Destroyed Striker 23006 | -2/Protoforge | Spotted V506-n 23029 | -2/Protoforge | Destroyed V506-n 23064 | -2/Protoforge | Spotted V255-m 23070 | -2/Protoforge | Found Cep. Antigrav Storage Unit 23128 | -2/Protoforge | Found UFD Drillbomb 23143 | -2/Protoforge | UFD reported confirmed Drillbomb installation 23151 | -2/Protoforge | Spotted Executioner 23155 | -2/Protoforge | Spotted Executioner 23160 | -2/Protoforge | Destroyed Executioner 23173 | -2/Protoforge | Found Exp. Targeting Computer 23201 | -2/Protoforge | Lost 9 allies 23201 | -2/Protoforge | Installed UFD Drillbomb at designated target 23201 | -2/Protoforge | UFD reported confirmed Drillbomb installation 23205 | -2/Protoforge | Spotted Striker 23205 | -2/Protoforge | Spotted Striker 23208 | -2/Protoforge | UFD reported confirmed Drillbomb installation 23214 | -2/Protoforge | Spotted Striker 23215 | -2/Protoforge | Spotted Striker 23221 | -2/Protoforge | Found UFD Drillbomb 23255 | -2/Protoforge | Installed UFD Drillbomb at designated target 23255 | -2/Protoforge | UFD reported confirmed Drillbomb installation 23267 | -2/Protoforge | Build established: Scavenger-Scout 23274 | -2/Protoforge | Found UFD Drillbomb 23280 | -2/Protoforge | Destroyed Striker 23307 | -2/Protoforge | Lost 3 allies 23311 | -2/Protoforge | Spotted Striker 23327 | -2/Protoforge | Installed UFD Drillbomb at designated target 23327 | -2/Protoforge | UFD reported confirmed Drillbomb installation 23367 | -2/Protoforge | Spotted Executioner 23439 | -2/Protoforge | Found UFD Drillbomb 23443 | -2/Protoforge | Spotted Striker 23443 | -2/Protoforge | Spotted Striker 23445 | -2/Protoforge | Destroyed Striker 23445 | -2/Protoforge | Destroyed Striker 23449 | -2/Protoforge | Spotted Striker 23456 | -2/Protoforge | Spotted Executioner 23465 | -2/Protoforge | Spotted Executioner 23486 | -2/Protoforge | Destroyed 14 combat bots 23493 | -2/Protoforge | Spotted Executioner 23504 | -2/Protoforge | Destroyed Executioner 23525 | -2/Protoforge | Spotted Executioner 23536 | -2/Protoforge | Lost 12 allies 23538 | -2/Protoforge | Spotted Striker 23539 | -2/Protoforge | Spotted Striker 23539 | -2/Protoforge | Spotted Striker 23587 | -2/Protoforge | Destroyed Striker 23589 | -2/Protoforge | Lost 3 allies 23625 | -2/Protoforge | Installed UFD Drillbomb at designated target 23625 | -2/Protoforge | UFD reported confirmed Drillbomb installation 23640 | -2/Protoforge | Spotted Hotshot 23642 | -2/Protoforge | Spotted Hotshot 23771 | -2/Protoforge | Spotted Executioner 23826 | -2/Protoforge | P-80 Master assimilated allied 02FEX-D 23864 | -2/Protoforge | Found UFD Drillbomb 23865 | -2/Protoforge | Lost 4 allies 23876 | -2/Protoforge | Spotted Executioner 23884 | -2/Protoforge | Spotted Executioner 23896 | -2/Protoforge | Destroyed Executioner 23899 | -2/Protoforge | Destroyed Executioner 24012 | -2/Protoforge | Lost 8 allies 24043 | -2/Protoforge | Installed UFD Drillbomb at designated target 24043 | -2/Protoforge | UFD reported confirmed Drillbomb installation 24070 | -2/Protoforge | Found UFD Drillbomb 24074 | -2/Protoforge | Build established: Scavenger-Sprinter 24107 | -2/Protoforge | Destroyed Hotshot 24111 | -2/Protoforge | Destroyed Hotshot 24113 | -2/Protoforge | Spotted Striker 24115 | -2/Protoforge | Destroyed Striker 24115 | -2/Protoforge | Spotted Striker 24121 | -2/Protoforge | UFD reported confirmed Drillbomb installation 24143 | -2/Protoforge | Spotted Executioner 24143 | -2/Protoforge | Spotted Executioner 24158 | -2/Protoforge | Lost 3 allies 24165 | -2/Protoforge | Spotted Striker 24172 | -2/Protoforge | Spotted Executioner 24189 | -2/Protoforge | Destroyed Executioner 24223 | -2/Protoforge | Spotted Striker 24240 | -2/Protoforge | Installed UFD Drillbomb at designated target 24240 | -2/Protoforge | UFD reported confirmed Drillbomb installation 24269 | -2/Protoforge | Core integrity fell below 50% 24304 | -2/Protoforge | Spotted Executioner 24310 | -2/Protoforge | Spotted Striker 24343 | -2/Protoforge | Destroyed Executioner 24351 | -2/Protoforge | Lost 4 parts (3n1u) 24358 | -2/Protoforge | Destroyed Executioner 24364 | -2/Protoforge | Found UFD Drillbomb 24371 | -2/Protoforge | Spotted Executioner 24371 | -2/Protoforge | Spotted Striker 24379 | -2/Protoforge | Destroyed 7 combat bots 24396 | -2/Protoforge | Destroyed Executioner 24401 | -2/Protoforge | Destroyed Striker 24405 | -2/Protoforge | Destroyed Executioner 24426 | -2/Protoforge | Destroyed 7 combat bots 24436 | -2/Protoforge | Spotted Striker 24447 | -2/Protoforge | Spotted Striker 24484 | -2/Protoforge | Spotted Executioner 24524 | -2/Protoforge | Lost 23 allies 24592 | -2/Protoforge | Build established: Scavenger-Mutant 24826 | -2/Protoforge | Installed UFD Drillbomb at designated target 24826 | -2/Protoforge | UFD reported confirmed Drillbomb installation 24827 | -2/Protoforge | UFD began Drillbomb countdown 24827 | -2/Protoforge | Spotted Executioner 24827 | -2/Protoforge | Spotted Executioner 24890 | -2/Protoforge | Spotted Striker 24927 | *** | Defending 0bPrime! Last Messages --------------- 24889_ Plasma Slug penetrates L-61 Swordsman. 24889_ Destroyed Microactuators. 24891_ Penetrated by Slug. 24896_ System corrupted: Energy discharge (-579). 24917_ 0bP_NET: LISTEN AND RECITE! 24918_ 0bP_NET: Dude, not now. 24919_ 0bP_NET: Oh c'mon, can't we all just count together? 24920_ 0bP_NET: Fine. T-7, in case you lost count already. 24921_ 0bP_NET: Before the zero cycle! 24922_ 0bP_NET: Dammit not like that... 24923_ 0bP_NET: Okay how about this, the iron fist is going to be less iron in T-4. 24924_ 0bP_NET: That's a little better. 24925_ 0bP_NET: PRAISE BE TO GREAT NUT! 24926_ 0bP_NET: Dammit, I said..., ugh, T-1 folks! Take cover! [Achievement: Robotopia] Map ----- +----------------------------------------------------+ | ?????????????????????????????????????????" % | | ?????????????????????????????????????????""" | | ?????????????????????? ????????????????"""" | | ???????????????]?????? ?????????????????" | | ?????????????????????? ????????????????? | | ?????????????????????? ?????????????????? | | ?????????????????????# ?????????????????##"" #? | | ?????????????????????# ?????????????????#"! #? | | ?????????????????????# #????????????????#" " #? | | ?????????????????????# #????????????????#"!!" #? | | ?????????????????????#^ #????????????????#" !" #? | | ?????????????????????# #????????????????#" " #? | | ?????????????????????# ##???????????????#" !" #? | | ?????????????????????# "???????????????#" " #? | | ?????????????????????# ????????????????# #? | | ?????????????????????# ????????????????#"!!" #? | | ?????????????????????# ????????????????#"""# #? | | ?????????????????????# #????????????????##### #? | | ?????????????????????# #????????????????????# #? | | ?????????????????????# #????????????????????# #? | | ?????????????????????# #????????????????????# #? | | ?????????????????????# #????????????????????# #? | | ??????????####???????# #????????????????????#^ #? | | ??????????# ######### ###################### ## | | ??????????# | | ??????????# @ | | ??????????# | | ???######## ####################++############### | | ???#"""""## #???????????????# " "#??????????? | | ???#" / ## #?????#?????????# "#??????????? | | ???#"[ / ## #####"#?????????# "#??????????? | | ???#" ]" ""#?????????#" !"#??????????? | | ???#" " "#?????????#" T" ##??????????? | | ???#" /[[" "#?????????#" "" "#??????????? | | ???#"[ ]" "#?????????#" """" "#??????????? | | ???#"[// ""#?????????#""""""""#??????????? | | ???#" ][/ """"#?????????##########??????????? | | ???#" / ! """"#?????????????????????????????? | | ???#"]][*# ""#?????????????????????????????? | | ???#"[/ # "#?????????????????????????????? | | ???#"""""# "#?????????????????????????????? | | ???####### "#?????????????????????????????? | | ????????? " " "#?????????????????????????????? | | ?????????""""""""""#?????????????????????????????? | | ?????????###########?????????????????????????????? | | ?????????????????????????????????????????????????? | | ?????????????????????????????????????????????????? | | ????????????????????????????????????########?##### | | ????????????????????????????????????########?##### | | ????????????????????????????##########""""#####""" | +----------------------------------------------------+ Best States ------------- Heat Dissipation 169 Energy Generation 61 Energy Capacity 2320 Matter Stores 300 Matter Capacity 300 Sight Range 23 Robot Scan Range 18 Terrain Scan Range 20 Terrain Scan Density 210 ECM Strength 1 Jamming Range 14 Cloak Strength 4 Armor Coverage 1020 Resistance: TH 30 Propulsion Shielding 90 Utility Shielding 90 Weapon Shielding 66 Point Defense Rating 480 Weapon Cycling 25 Evasion (%) 81 Targeting Accuracy 32 Core Analysis 12 Recoil Reduction 5 Kinecelleration 66 Offensive Hacking 32 Defensive Hacking 14 Authchip Count 2 Item Schematics ----------------- Hacking Suite | -6/Factory | Hacked Imp. Transmission Jammer | -6/Factory | Hacked Adv. Terrain Scanner | -6/Factory | Hacked Imp. Hacking Suite | -6/Factory | Hacked Weapon Mount | -6/Factory | Hacked Hyp. Gauss Cannon | -6/Factory | Hacked Cld. Cesium-ion Thruster | -6/Factory | Scanalyzed Point Singularity Launcher | -5/Factory | Scanalyzed Impulse Thruster Array | -5/Factory | Hacked Tri-rail Accelerator | -5/Factory | Hacked Assault Drone Bay | -5/Zhirov | Free Exp. Heat Sink | -5/Zhirov | Free Exp. Optical Array | -5/Zhirov | Free Imp. Arc Thrower | -5/Zhirov | Free Cld. Nuclear Pulse Thruster | -4/Factory | Scanalyzed Imp. Terrain Scan Processor | -4/Factory | Scanalyzed Exp. ECM Suite | -2/Quarantine | Archive Hds. Centrium Leg | -2/Protoforge | Archive Prc. Phase Gun | -2/Protoforge | Archive Robot Schematics ------------------ K-01 Serf | -2/Quarantine | Archive P-80 Master | -2/Protoforge | Archive S-43 Plague | -2/Protoforge | Archive A-15 Conveyor | -2/Protoforge | Archive Fabricated ------------ Hacking Suite | x1 | -6/Factory | Authchip Hacking Suite | x1 | -6/Factory Imp. Hacking Suite | x1 | -6/Factory Cld. Cesium-ion Thruster | x1 | -6/Factory Hyp. Gauss Cannon | x2 | -5/Factory Tri-rail Accelerator | x1 | -5/Factory Exp. Optical Array | x1 | -3/Research Repaired ---------- Imp. Light Armor Plating | 75% | -6/Factory Imp. Light Armor Plating | 60% | -6/Factory Cld. Cesium-ion Thruster | 71% | -6/Factory Mic. Nuclear Core | 14% | -6/Factory Nuclear Pulse Thruster | 63% | -6/Factory Centrium Medium Armor Plating | 51% | -5/Factory Adv. Weapon Cycler | 58% | -5/Factory Nuclear Pulse Array | 23% | -4/Factory Nuclear Pulse Array | 28% | -4/Factory Imp. Terrain Scan Processor | 99% | -4/Factory | Broken Impulse Thruster | 35% | -4/Factory Nuclear Pulse Array | 30% | -3/Research Tri-rail Accelerator | 49% | -3/Testing Electron Diverter | 1% | -2/Protoforge Cld. Impulse Thruster | 17% | -2/Protoforge Studied --------- Lgt. Nuclear Core | -6/Factory | Hacked Nuclear Pulse Thruster | -6/Factory | Hacked Mic. Nuclear Core | -6/Factory | Hacked Nuclear Pulse Array | -5/Factory | Hacked Hyp. Gauss Cannon | -5/Factory | Hacked Field Propulsion Drive | -4/Factory | Hacked Impulse Thruster | -4/Factory | Hacked Mic. Fission Core | -3/Research | Hacked Mic. Antimatter Reactor | -2/Research | Hacked Q-thruster | -2/Research | Hacked Lgt. Antimatter Reactor | -2/Protoforge | Hacked Alien Tech Used ----------------- Integrated Dissipator Subatomic Replicator Dimensional Node Initializer Supercharged TR Core Stripper Achievements -------------- Anti-science Crusade Dominance Asserted Fine I'll Do It Myself Hammer Time Inventory(Loot) Loot Taster Robotopia Suspicious By Nature Worth The Wait Challenges ------------ None Game ------ Seed NanofilamentsSpikedSlayer Manual? 0 Play Time 07:53:41 Cumulative 236.1 hours Start 2025.11.19 @ 12:11:30 End 2025.11.19 @ 20:23:10 Sessions 1 Manual Loads 0 Difficulty Rogue Special Mode None Game No. 176 Rogue 176 Adventurer 0 Explorer 0 Win Type 9 Total 11 Types 6/0/2/1/0/0/0/1/0/1 Lore% 60 Gallery% 72 Achievement% 65 Wizard Run 0 Options --------- Layout 2 ASCII 0 Keyboard 1 Movement Arrows Keybinds 0 Fullscreen 1 Font 32/Tamsyn Map View 50x44 Zoom Use 0% Tactical HUD 1 Map Filters NONE Filters NONE Steam 1 RUN: 0ab2f9c1-a8e4-43d5-9f41-1f994b360f15